Workbook

Sheet Feuil1
B1: Abt | C1: HP | D1: HC | F1: HP | G1: HC
A2: Novembre
A3: Décembre | B3: 18.67 | C3: 0.1936 | D3: 0.1133 | F3: =+#REF! ->  | G3: =+#REF! ->  | H3: =+C3*F3 ->  | I3: =+D3*G3 ->  | J3: =+B3+H3+I3 -> 
A4: Janvier | B4: 18.67 | C4: 0.1936 | D4: 0.1133 | F4: =+#REF! ->  | G4: =+#REF! ->  | H4: =+C4*F4 ->  | I4: =+D4*G4 ->  | J4: =+B4+H4+I4 -> 
A5: Février | B5: 19.34 | C5: 0.2323 | D5: 0.1475 | F5: =+#REF! ->  | G5: =+#REF! -> 
A6: Mars | B6: 19.34 | C6: 0.2323 | D6: 0.1475 | F6: =+#REF! ->  | G6: =+#REF! -> 
A7: Avril | B7: 19.34 | C7: 0.2323 | D7: 0.1475 | F7: =+#REF! ->  | G7: =+#REF! -> 
A8: Mai | B8: 19.34 | C8: 0.2323 | D8: 0.1475 | F8: =+#REF! ->  | G8: =+#REF! -> 
A9: Juin | B9: 19.34 | C9: 0.2323 | D9: 0.1475 | F9: =+#REF! ->  | G9: =+#REF! -> 
A10: Juillet | B10: 19.34 | C10: 0.2323 | D10: 0.1475 | F10: =+#REF! ->  | G10: =+#REF! -> 
A11: Août | B11: 20.04 | C11: 0.2555 | D11: 0.1687 | F11: =+#REF! ->  | G11: =+#REF! -> 
A12: Septembre | B12: 20.04 | C12: 0.2555 | D12: 0.1687 | F12: =+#REF! ->  | G12: =+#REF! -> 
A13: Octobre | B13: 20.04 | C13: 0.2555 | D13: 0.167 | F13: =+#REF! ->  | G13: =+#REF! -> 
A14: Novembre
J15: =SUM(J3:J14) -> 

Sheet Suivi journalier
A1: Date | B1: N° Mois-an | C1: N° Échéance | D1: HC - Kw Total énergie | E1: HP - Kw Total énergie | F1: Total KW Total énergie | G1: Montant Total Energie | H1: Montant TE | I1: Conso mensuel | J1: Coût mensuel | K1: Conso année N-1 | L1: Conso année en cours | M1: Ecarts année en cours | N1: Puissance maximum | O1: température mini | P1: température maxi | Q1: Moyenne | R1: Gain écarts Euros | S1: Moyenne N-1 | T1: Ecart temp N et N-1 | U1: Facture annuelle | V1: PU du KWH
A2: Conso Total Energie | C2: T.E. | D2: =MAX(D371:D735) -> 24.3 | E2: =MAX(E371:E735) -> 43.5 | F2: =MAX(F371:F735) -> 65.9 | G2: =MAX(G371:G735) -> 12.16 | K2: =MIN(L371:L735) -> 4.1 | L2: =_xlfn.XLOOKUP(K2,$L$371:$L$735,$A$371:$A$735) -> 2023-07-25 | M2: =SUM(M371:M735) -> -338.364 | O2: =+MIN(O417:O737) -> -3.6 | P2: =+MAX(P417:P737) -> 33.7 | Q2: =AVERAGE(Q371:Q735) -> 13.10794872 | S2: =+_xlfn.XLOOKUP(Suivi[[#This Row],[Gain écarts Euros]],$R$417:$R$737,$A$417:$A$737) -> 2023-01-01 | T2: =HYPERLINK("#"&ADDRESS(MATCH(S2,A:A,0),3),"aller au mini") -> aller au mini | U2: Moyenne avant aug | V2: =AVERAGE($V$371:$V$447) -> 0.1808242287
A3: Solde facture | D3: =_xlfn.XLOOKUP(D2,D371:D735,$A$371:$A$735) -> 2022-12-18 | E3: =_xlfn.XLOOKUP(E2,E371:E735,$A$371:$A$735) -> 2023-01-20 | F3: =_xlfn.XLOOKUP(F2,F371:F735,$A$371:$A$735) -> 2023-01-20 | G3: =_xlfn.XLOOKUP(G2,G371:G735,$A$371:$A$735) -> 2023-02-07 | H3: =+G2+Suivi[[#This Row],[Montant Total Energie]] -> 2023-02-19T03:50:24 | K3: =MAX(L371:L735) -> 65.9 | L3: =_xlfn.XLOOKUP(K3,$L$371:$L$735,$A$371:$A$735) -> 2023-01-20 | O3: =_xlfn.XLOOKUP(O2,O371:O735,$A$371:$A$735) -> 2023-02-08 | P3: =_xlfn.XLOOKUP(P2,P371:P735,$A$371:$A$735) -> 2023-09-09 | S3: =+_xlfn.XLOOKUP(Suivi[[#This Row],[Gain écarts Euros]],$R$417:$R$737,$A$417:$A$737) -> 2023-01-01 | T3: =HYPERLINK("#"&ADDRESS(MATCH(S3,A:A,0),17),"aller au mini") -> aller au mini | U3: Moyenne après | V3: =AVERAGEIF(($V$448:$V$735),">0") -> 0.2573985786
A4: 2021-11-14 | B4: 11 21 | D4: 7.753 | E4: 16.005 | F4: 23.758 | K4: 41.159 | L4: 23.8 | N4: 4.57 | O4: 9.9 | P4: 12.1 | Q4: 11 | V4: =IF(Suivi[[#This Row],[HC - Kw Total énergie]]="","",Suivi[[#This Row],[Montant Total Energie]]/Suivi[[#This Row],[Total KW Total énergie]]) -> 0
A5: 2021-11-15 | B5: 11 21 | D5: 7.706 | E5: 18.921 | F5: 26.627 | K5: 37.951 | L5: 26.6 | N5: 5.12 | O5: 4.6 | P5: 11.8 | Q5: 8.2 | V5: =IF(Suivi[[#This Row],[HC - Kw Total énergie]]="","",Suivi[[#This Row],[Montant Total Energie]]/Suivi[[#This Row],[Total KW Total énergie]]) -> 0
A6: 2021-11-16 | B6: 11 21 | C6: 1 | D6: 9.968 | E6: 23.245 | F6: 33.213 | K6: 42.77 | L6: 33.2 | N6: 6.85 | O6: 3.3 | P6: 10.7 | Q6: 7 | V6: =IF(Suivi[[#This Row],[HC - Kw Total énergie]]="","",Suivi[[#This Row],[Montant Total Energie]]/Suivi[[#This Row],[Total KW Total énergie]]) -> 0
A7: 2021-11-17 | B7: 11 21 | C7: 1 | D7: 7.879 | E7: 21.94 | F7: 29.819 | K7: 35.438 | L7: 29.8 | N7: 5.1 | O7: 8.1 | P7: 13 | Q7: 10.55 | V7: =IF(Suivi[[#This Row],[HC - Kw Total énergie]]="","",Suivi[[#This Row],[Montant Total Energie]]/Suivi[[#This Row],[Total KW Total énergie]]) -> 0
A8: 2021-11-18 | B8: 11 21 | C8: 1 | D8: 9.082 | E8: 21.077 | F8: 30.159 | K8: 44.955 | L8: 30.2 | N8: 5.16 | O8: 2.6 | P8: 11.7 | Q8: 7.15 | V8: =IF(Suivi[[#This Row],[HC - Kw Total énergie]]="","",Suivi[[#This Row],[Montant Total Energie]]/Suivi[[#This Row],[Total KW Total énergie]]) -> 0
A9: 2021-11-19 | B9: 11 21 | C9: 1 | D9: 10.497 | E9: 29.152 | F9: 39.649 | K9: 50.748 | L9: 39.6 | N9: 9.26 | O9: 3.4 | P9: 12.5 | Q9: 7.95 | V9: =IF(Suivi[[#This Row],[HC - Kw Total énergie]]="","",Suivi[[#This Row],[Montant Total Energie]]/Suivi[[#This Row],[Total KW Total énergie]]) -> 0
A10: 2021-11-20 | B10: 11 21 | C10: 1 | D10: 15.599 | E10: 40.966 | F10: 56.565 | K10: 44.502 | L10: 56.6 | N10: 8.54 | O10: 3.1 | P10: 7.1 | Q10: 5.1 | V10: =IF(Suivi[[#This Row],[HC - Kw Total énergie]]="","",Suivi[[#This Row],[Montant Total Energie]]/Suivi[[#This Row],[Total KW Total énergie]]) -> 0
A11: 2021-11-21 | B11: 11 21 | C11: 1 | D11: 7.778 | E11: 22.949 | F11: 30.727 | K11: 40.912 | L11: 30.7 | N11: 6.85 | O11: 5.5 | P11: 8.6 | Q11: 7.05 | V11: =IF(Suivi[[#This Row],[HC - Kw Total énergie]]="","",Suivi[[#This Row],[Montant Total Energie]]/Suivi[[#This Row],[Total KW Total énergie]]) -> 0
A12: 2021-11-22 | B12: 11 21 | C12: 1 | D12: 8.357 | E12: 25.231 | F12: 33.588 | K12: 49.396 | L12: 33.6 | N12: 5.88 | O12: 2.7 | P12: 9.4 | Q12: 6.05 | V12: =IF(Suivi[[#This Row],[HC - Kw Total énergie]]="","",Suivi[[#This Row],[Montant Total Energie]]/Suivi[[#This Row],[Total KW Total énergie]]) -> 0
A13: 2021-11-23 | B13: 11 21 | C13: 1 | D13: 10.343 | E13: 38.262 | F13: 48.605 | K13: 63.806 | L13: 48.6 | N13: 6.46 | O13: 1.4 | P13: 9.2 | Q13: 5.3 | V13: =IF(Suivi[[#This Row],[HC - Kw Total énergie]]="","",Suivi[[#This Row],[Montant Total Energie]]/Suivi[[#This Row],[Total KW Total énergie]]) -> 0
A14: 2021-11-24 | B14: 11 21 | C14: 1 | D14: 13.815 | E14: 36.328 | F14: 50.143 | K14: 52.311 | L14: 50.1 | N14: 5.64 | O14: 1.6 | P14: 9.9 | Q14: 5.75 | V14: =IF(Suivi[[#This Row],[HC - Kw Total énergie]]="","",Suivi[[#This Row],[Montant Total Energie]]/Suivi[[#This Row],[Total KW Total énergie]]) -> 0
A15: 2021-11-25 | B15: 11 21 | C15: 1 | D15: 12.929 | E15: 36.959 | F15: 49.888 | K15: 53.254 | L15: 49.9 | N15: 5.84 | O15: 1.7 | P15: 7.9 | Q15: 4.8 | V15: =IF(Suivi[[#This Row],[HC - Kw Total énergie]]="","",Suivi[[#This Row],[Montant Total Energie]]/Suivi[[#This Row],[Total KW Total énergie]]) -> 0
A16: 2021-11-26 | B16: 11 21 | C16: 1 | D16: 13.148 | E16: 38.999 | F16: 52.147 | K16: 51.101 | L16: 52.1 | N16: 5.82 | O16: 1.5 | P16: 9.8 | Q16: 5.65 | V16: =IF(Suivi[[#This Row],[HC - Kw Total énergie]]="","",Suivi[[#This Row],[Montant Total Energie]]/Suivi[[#This Row],[Total KW Total énergie]]) -> 0
A17: 2021-11-27 | B17: 11 21 | C17: 1 | D17: 14.511 | E17: 39.592 | F17: 54.103 | K17: 53.893 | L17: 54.1 | N17: 5.7 | O17: 2.2 | P17: 6.3 | Q17: 4.25 | V17: =IF(Suivi[[#This Row],[HC - Kw Total énergie]]="","",Suivi[[#This Row],[Montant Total Energie]]/Suivi[[#This Row],[Total KW Total énergie]]) -> 0
A18: 2021-11-28 | B18: 11 21 | C18: 1 | D18: 15.259 | E18: 35.492 | F18: 50.751 | K18: 53.31 | L18: 50.75 | N18: 6 | O18: 1.1 | P18: 7.1 | Q18: 4.1 | V18: =IF(Suivi[[#This Row],[HC - Kw Total énergie]]="","",Suivi[[#This Row],[Montant Total Energie]]/Suivi[[#This Row],[Total KW Total énergie]]) -> 0
A19: 2021-11-29 | B19: 11 21 | C19: 1 | D19: 13.078 | E19: 34.559 | F19: 47.637 | K19: 44.629 | L19: 47.64 | N19: 6.5 | O19: 0.1 | P19: 6.6 | Q19: 3.35 | V19: =IF(Suivi[[#This Row],[HC - Kw Total énergie]]="","",Suivi[[#This Row],[Montant Total Energie]]/Suivi[[#This Row],[Total KW Total énergie]]) -> 0
A20: 2021-11-30 | B20: 11 21 | C20: 1 | D20: 10.521 | E20: 29.78 | F20: 40.301 | K20: 51.285 | L20: 40.3 | N20: 6.9 | O20: 1.9 | P20: 10.9 | Q20: 6.4 | V20: =IF(Suivi[[#This Row],[HC - Kw Total énergie]]="","",Suivi[[#This Row],[Montant Total Energie]]/Suivi[[#This Row],[Total KW Total énergie]]) -> 0
A21: 2021-12-01 | B21: 12 21 | C21: 1 | D21: 9.087 | E21: 23.595 | F21: 32.682 | K21: 39.769 | L21: 32.7 | N21: 5.46 | O21: 6.2 | P21: 10.2 | Q21: 8.2 | V21: =IF(Suivi[[#This Row],[HC - Kw Total énergie]]="","",Suivi[[#This Row],[Montant Total Energie]]/Suivi[[#This Row],[Total KW Total énergie]]) -> 0
A22: 2021-12-02 | B22: 12 21 | C22: 1 | D22: 12.501 | E22: 38.207 | F22: 50.708 | K22: 45.69 | L22: 50.7 | N22: 8.55 | O22: 2.4 | P22: 6.2 | Q22: 4.3 | V22: =IF(Suivi[[#This Row],[HC - Kw Total énergie]]="","",Suivi[[#This Row],[Montant Total Energie]]/Suivi[[#This Row],[Total KW Total énergie]]) -> 0
A23: 2021-12-03 | B23: 12 21 | C23: 1 | D23: 13.609 | E23: 32.644 | F23: 46.253 | K23: 47.759 | L23: 46.3 | N23: 5.94 | O23: -0.6 | P23: 12.9 | Q23: 6.15 | V23: =IF(Suivi[[#This Row],[HC - Kw Total énergie]]="","",Suivi[[#This Row],[Montant Total Energie]]/Suivi[[#This Row],[Total KW Total énergie]]) -> 0
A24: 2021-12-04 | B24: 12 21 | C24: 1 | D24: 6.553 | E24: 25.792 | F24: 32.345 | K24: 51.227 | L24: 32.3 | N24: 4.89 | O24: 5.6 | P24: 10 | Q24: 7.8 | V24: =IF(Suivi[[#This Row],[HC - Kw Total énergie]]="","",Suivi[[#This Row],[Montant Total Energie]]/Suivi[[#This Row],[Total KW Total énergie]]) -> 0
A25: 2021-12-05 | B25: 12 21 | C25: 1 | D25: 11.185 | E25: 27.945 | F25: 39.13 | K25: 70.274 | L25: 39.1 | N25: 6.83 | O25: 3.2 | P25: 8.7 | Q25: 5.95 | V25: =IF(Suivi[[#This Row],[HC - Kw Total énergie]]="","",Suivi[[#This Row],[Montant Total Energie]]/Suivi[[#This Row],[Total KW Total énergie]]) -> 0
A26: 2021-12-06 | B26: 12 21 | C26: 1 | D26: 9.858 | E26: 32.192 | F26: 42.05 | K26: 69.046 | L26: 42 | N26: 5.75 | O26: 4.9 | P26: 8.9 | Q26: 6.9 | V26: =IF(Suivi[[#This Row],[HC - Kw Total énergie]]="","",Suivi[[#This Row],[Montant Total Energie]]/Suivi[[#This Row],[Total KW Total énergie]]) -> 0
A27: 2021-12-07 | B27: 12 21 | C27: 1 | D27: 9.584 | E27: 36.721 | F27: 46.305 | K27: 70.248 | L27: 46.3 | N27: 5.26 | O27: 3.3 | P27: 9.6 | Q27: 6.45 | V27: =IF(Suivi[[#This Row],[HC - Kw Total énergie]]="","",Suivi[[#This Row],[Montant Total Energie]]/Suivi[[#This Row],[Total KW Total énergie]]) -> 0
A28: 2021-12-08 | B28: 12 21 | C28: 1 | D28: 8.893 | E28: 36.74 | F28: 45.633 | K28: 78.934 | L28: 45.6 | N28: 8.38 | O28: 1.9 | P28: 7.8 | Q28: 4.85 | V28: =IF(Suivi[[#This Row],[HC - Kw Total énergie]]="","",Suivi[[#This Row],[Montant Total Energie]]/Suivi[[#This Row],[Total KW Total énergie]]) -> 0
A29: 2021-12-09 | B29: 12 21 | C29: 1 | D29: 9.936 | E29: 37.743 | F29: 47.679 | K29: 52.347 | L29: 47.7 | N29: 5.12 | O29: 1.2 | P29: 11.2 | Q29: 6.2 | V29: =IF(Suivi[[#This Row],[HC - Kw Total énergie]]="","",Suivi[[#This Row],[Montant Total Energie]]/Suivi[[#This Row],[Total KW Total énergie]]) -> 0
A30: 2021-12-10 | B30: 12 21 | C30: 1 | D30: 8.515 | E30: 39.192 | F30: 47.707 | K30: 73.101 | L30: 47.7 | N30: 6.58 | O30: 5.4 | P30: 9 | Q30: 7.2 | V30: =IF(Suivi[[#This Row],[HC - Kw Total énergie]]="","",Suivi[[#This Row],[Montant Total Energie]]/Suivi[[#This Row],[Total KW Total énergie]]) -> 0
A31: 2021-12-11 | B31: 12 21 | C31: 1 | D31: 13.974 | E31: 30.442 | F31: 44.416 | K31: 64.859 | L31: 44.4 | N31: 5.63 | O31: 4.1 | P31: 10.8 | Q31: 7.45 | V31: =IF(Suivi[[#This Row],[HC - Kw Total énergie]]="","",Suivi[[#This Row],[Montant Total Energie]]/Suivi[[#This Row],[Total KW Total énergie]]) -> 0
A32: 2021-12-12 | B32: 12 21 | C32: 1 | D32: 8.287 | E32: 25.553 | F32: 33.84 | K32: 66.435 | L32: 33.8 | N32: 5.99 | O32: 9.2 | P32: 12 | Q32: 10.6 | V32: =IF(Suivi[[#This Row],[HC - Kw Total énergie]]="","",Suivi[[#This Row],[Montant Total Energie]]/Suivi[[#This Row],[Total KW Total énergie]]) -> 0
A33: 2021-12-13 | B33: 12 21 | C33: 1 | D33: 7.874 | E33: 28.641 | F33: 36.515 | K33: 61.682 | L33: 36.5 | N33: 6.61 | O33: 7.7 | P33: 9.3 | Q33: 8.5 | V33: =IF(Suivi[[#This Row],[HC - Kw Total énergie]]="","",Suivi[[#This Row],[Montant Total Energie]]/Suivi[[#This Row],[Total KW Total énergie]]) -> 0
A34: 2021-12-14 | B34: 12 21 | C34: 1 | D34: 9.355 | E34: 29.96 | F34: 39.315 | K34: 57.106 | L34: 39.3 | N34: 6.98 | O34: 6.4 | P34: 8.9 | Q34: 7.65 | V34: =IF(Suivi[[#This Row],[HC - Kw Total énergie]]="","",Suivi[[#This Row],[Montant Total Energie]]/Suivi[[#This Row],[Total KW Total énergie]]) -> 0
A35: 2021-12-15 | B35: 12 21 | C35: 1 | D35: 8.782 | E35: 31.784 | F35: 40.566 | K35: 60.682 | L35: 40.6 | N35: 5.87 | O35: 5.6 | P35: 6.4 | Q35: 6 | V35: =IF(Suivi[[#This Row],[HC - Kw Total énergie]]="","",Suivi[[#This Row],[Montant Total Energie]]/Suivi[[#This Row],[Total KW Total énergie]]) -> 0
A36: 2021-12-16 | B36: 12 21 | C36: 2 | D36: 9.017 | E36: 32.506 | F36: 41.523 | K36: 60.955 | L36: 41.5 | N36: 5.23 | O36: 5.2 | P36: 9.4 | Q36: 7.3 | V36: =IF(Suivi[[#This Row],[HC - Kw Total énergie]]="","",Suivi[[#This Row],[Montant Total Energie]]/Suivi[[#This Row],[Total KW Total énergie]]) -> 0
A37: 2021-12-17 | B37: 12 21 | C37: 2 | D37: 13.044 | E37: 26.995 | F37: 40.039 | K37: 49.723 | L37: 40 | N37: 7.67 | O37: 2.9 | P37: 8.7 | Q37: 5.8 | V37: =IF(Suivi[[#This Row],[HC - Kw Total énergie]]="","",Suivi[[#This Row],[Montant Total Energie]]/Suivi[[#This Row],[Total KW Total énergie]]) -> 0
A38: 2021-12-18 | B38: 12 21 | C38: 2 | D38: 20.528 | E38: 35.053 | F38: 55.581 | K38: 46.981 | L38: 55.6 | N38: 6.22 | O38: 1.5 | P38: 10.4 | Q38: 5.95 | V38: =IF(Suivi[[#This Row],[HC - Kw Total énergie]]="","",Suivi[[#This Row],[Montant Total Energie]]/Suivi[[#This Row],[Total KW Total énergie]]) -> 0
A39: 2021-12-19 | B39: 12 21 | C39: 2 | D39: 11.735 | E39: 33.088 | F39: 44.823 | K39: 61.533 | L39: 44.8 | N39: 6.33 | O39: 1.6 | P39: 7 | Q39: 4.3 | V39: =IF(Suivi[[#This Row],[HC - Kw Total énergie]]="","",Suivi[[#This Row],[Montant Total Energie]]/Suivi[[#This Row],[Total KW Total énergie]]) -> 0
A40: 2021-12-20 | B40: 12 21 | C40: 2 | D40: 12.278 | E40: 40.457 | F40: 52.735 | K40: 62.97 | L40: 52.7 | N40: 7.26 | O40: 3.5 | P40: 4.7 | Q40: 4.1 | V40: =IF(Suivi[[#This Row],[HC - Kw Total énergie]]="","",Suivi[[#This Row],[Montant Total Energie]]/Suivi[[#This Row],[Total KW Total énergie]]) -> 0
A41: 2021-12-21 | B41: 12 21 | C41: 2 | D41: 21.741 | E41: 50.944 | F41: 72.685 | K41: 65.078 | L41: 72.7 | N41: 8.72 | O41: -1.8 | P41: 5.8 | Q41: 2 | V41: =IF(Suivi[[#This Row],[HC - Kw Total énergie]]="","",Suivi[[#This Row],[Montant Total Energie]]/Suivi[[#This Row],[Total KW Total énergie]]) -> 0
A42: 2021-12-22 | B42: 12 21 | C42: 2 | D42: 25.149 | E42: 63.953 | F42: 89.102 | K42: 57.888 | L42: 89.1 | N42: 8.49 | O42: -2.1 | P42: 2.3 | Q42: 0.1 | V42: =IF(Suivi[[#This Row],[HC - Kw Total énergie]]="","",Suivi[[#This Row],[Montant Total Energie]]/Suivi[[#This Row],[Total KW Total énergie]]) -> 0
A43: 2021-12-23 | B43: 12 21 | C43: 2 | D43: 20.05 | E43: 44.503 | F43: 64.553 | K43: 54.794 | L43: 64.6 | N43: 7.77 | O43: -0.9 | P43: 9.3 | Q43: 4.2 | V43: =IF(Suivi[[#This Row],[HC - Kw Total énergie]]="","",Suivi[[#This Row],[Montant Total Energie]]/Suivi[[#This Row],[Total KW Total énergie]]) -> 0
A44: 2021-12-24 | B44: 12 21 | C44: 2 | D44: 17.214 | E44: 31.916 | F44: 49.13 | K44: 50.324 | L44: 49.1 | N44: 6.49 | O44: 8.8 | P44: 9.9 | Q44: 9.35 | V44: =IF(Suivi[[#This Row],[HC - Kw Total énergie]]="","",Suivi[[#This Row],[Montant Total Energie]]/Suivi[[#This Row],[Total KW Total énergie]]) -> 0
A45: 2021-12-25 | B45: 12 21 | C45: 2 | D45: 11.715 | E45: 29.873 | F45: 41.588 | K45: 46.915 | L45: 41.6 | N45: 6.8 | O45: 8.8 | P45: 11.3 | Q45: 10.05 | V45: =IF(Suivi[[#This Row],[HC - Kw Total énergie]]="","",Suivi[[#This Row],[Montant Total Energie]]/Suivi[[#This Row],[Total KW Total énergie]]) -> 0
A46: 2021-12-26 | B46: 12 21 | C46: 2 | D46: 10.019 | E46: 29.014 | F46: 39.033 | K46: 46 | L46: 39 | N46: 6.27 | O46: 9.4 | P46: 12.1 | Q46: 10.75 | V46: =IF(Suivi[[#This Row],[HC - Kw Total énergie]]="","",Suivi[[#This Row],[Montant Total Energie]]/Suivi[[#This Row],[Total KW Total énergie]]) -> 0
A47: 2021-12-27 | B47: 12 21 | C47: 2 | D47: 9.248 | E47: 28.516 | F47: 37.764 | K47: 58.541 | L47: 37.8 | N47: 6.18 | O47: 8.8 | P47: 13.3 | Q47: 11.05 | V47: =IF(Suivi[[#This Row],[HC - Kw Total énergie]]="","",Suivi[[#This Row],[Montant Total Energie]]/Suivi[[#This Row],[Total KW Total énergie]]) -> 0
A48: 2021-12-28 | B48: 12 21 | C48: 2 | D48: 10.178 | E48: 28.657 | F48: 38.835 | K48: 64.509 | L48: 38.8 | N48: 6.92 | O48: 10.7 | P48: 14 | Q48: 12.35 | V48: =IF(Suivi[[#This Row],[HC - Kw Total énergie]]="","",Suivi[[#This Row],[Montant Total Energie]]/Suivi[[#This Row],[Total KW Total énergie]]) -> 0
A49: 2021-12-29 | B49: 12 21 | C49: 2 | D49: 9.007 | E49: 24.924 | F49: 33.931 | K49: 81.386 | L49: 33.9 | N49: 6.27 | O49: 10 | P49: 15.2 | Q49: 12.6 | V49: =IF(Suivi[[#This Row],[HC - Kw Total énergie]]="","",Suivi[[#This Row],[Montant Total Energie]]/Suivi[[#This Row],[Total KW Total énergie]]) -> 0
A50: 2021-12-30 | B50: 12 21 | C50: 2 | D50: 8.272 | E50: 24.542 | F50: 32.814 | K50: 71.152 | L50: 32.8 | N50: 6.45 | O50: 12.3 | P50: 14.8 | Q50: 13.55 | V50: =IF(Suivi[[#This Row],[HC - Kw Total énergie]]="","",Suivi[[#This Row],[Montant Total Energie]]/Suivi[[#This Row],[Total KW Total énergie]]) -> 0
A51: 2021-12-31 | B51: 12 21 | C51: 2 | D51: 9.811 | E51: 20.318 | F51: 30.129 | K51: 82.605 | L51: 30.1 | N51: 8.09 | O51: 7.6 | P51: 13.6 | Q51: 10.6 | V51: =IF(Suivi[[#This Row],[HC - Kw Total énergie]]="","",Suivi[[#This Row],[Montant Total Energie]]/Suivi[[#This Row],[Total KW Total énergie]]) -> 0
A52: 2022-01-01 | B52: 01 22 | C52: 2 | D52: 10.344 | E52: 26.102 | F52: 36.446 | K52: 78.434 | L52: 36.446 | M52: -41.988 | N52: 5.9 | O52: 7.4 | P52: 14.6 | Q52: 11 | S52: 0.65 | T52: 10.35 | V52: =IF(Suivi[[#This Row],[HC - Kw Total énergie]]="","",Suivi[[#This Row],[Montant Total Energie]]/Suivi[[#This Row],[Total KW Total énergie]]) -> 0
A53: 2022-01-02 | B53: 01 22 | C53: 2 | D53: 9.463 | E53: 26.483 | F53: 35.946 | K53: 93.742 | L53: 35.946 | M53: -57.796 | N53: 5.4 | O53: 11 | P53: 14.3 | Q53: 12.65 | S53: -0.2 | T53: 12.85 | V53: =IF(Suivi[[#This Row],[HC - Kw Total énergie]]="","",Suivi[[#This Row],[Montant Total Energie]]/Suivi[[#This Row],[Total KW Total énergie]]) -> 0
A54: 2022-01-03 | B54: 01 22 | C54: 2 | D54: 11.376 | E54: 25.926 | F54: 37.302 | K54: 90.69 | L54: 37.302 | M54: -53.388 | N54: 7.07 | O54: 10.5 | P54: 12.3 | Q54: 11.4 | S54: 1.55 | T54: 9.85 | V54: =IF(Suivi[[#This Row],[HC - Kw Total énergie]]="","",Suivi[[#This Row],[Montant Total Energie]]/Suivi[[#This Row],[Total KW Total énergie]]) -> 0
A55: 2022-01-04 | B55: 01 22 | C55: 2 | D55: 10.995 | E55: 25.564 | F55: 36.559 | K55: 85.778 | L55: 36.559 | M55: -49.219 | N55: 6.5 | O55: 5.2 | P55: 9.1 | Q55: 7.15 | S55: 1.5 | T55: 5.65 | V55: =IF(Suivi[[#This Row],[HC - Kw Total énergie]]="","",Suivi[[#This Row],[Montant Total Energie]]/Suivi[[#This Row],[Total KW Total énergie]]) -> 0
A56: 2022-01-05 | B56: 01 22 | C56: 2 | D56: 18.128 | E56: 43.444 | F56: 61.572 | K56: 73.318 | L56: 61.572 | M56: -11.746 | N56: 6.31 | O56: 8.6 | P56: 5.7 | Q56: 7.15 | S56: 1.65 | T56: 5.5 | V56: =IF(Suivi[[#This Row],[HC - Kw Total énergie]]="","",Suivi[[#This Row],[Montant Total Energie]]/Suivi[[#This Row],[Total KW Total énergie]]) -> 0
A57: 2022-01-06 | B57: 01 22 | C57: 2 | D57: 19.929 | E57: 44.588 | F57: 64.517 | K57: 91.308 | L57: 64.517 | M57: -26.791 | N57: 8.01 | O57: 0.7 | P57: 7.6 | Q57: 4.15 | S57: 1.1 | T57: 3.05 | V57: =IF(Suivi[[#This Row],[HC - Kw Total énergie]]="","",Suivi[[#This Row],[Montant Total Energie]]/Suivi[[#This Row],[Total KW Total énergie]]) -> 0
A58: 2022-01-07 | B58: 01 22 | C58: 2 | D58: 14.178 | E58: 36.383 | F58: 50.561 | K58: 86.545 | L58: 50.561 | M58: -35.984 | N58: 6.38 | O58: 5 | P58: 9.2 | Q58: 7.1 | S58: 1.25 | T58: 5.85 | V58: =IF(Suivi[[#This Row],[HC - Kw Total énergie]]="","",Suivi[[#This Row],[Montant Total Energie]]/Suivi[[#This Row],[Total KW Total énergie]]) -> 0
A59: 2022-01-08 | B59: 01 22 | C59: 2 | D59: 15.546 | E59: 35.399 | F59: 50.945 | K59: 89.597 | L59: 50.945 | M59: -38.652 | N59: 5.7 | O59: 6.5 | P59: 10.6 | Q59: 8.55 | S59: 0.1 | T59: 8.45 | V59: =IF(Suivi[[#This Row],[HC - Kw Total énergie]]="","",Suivi[[#This Row],[Montant Total Energie]]/Suivi[[#This Row],[Total KW Total énergie]]) -> 0
A60: 2022-01-09 | B60: 01 22 | C60: 2 | D60: 13.801 | E60: 33.598 | F60: 47.399 | K60: 91.243 | L60: 47.399 | M60: -43.844 | N60: 5.2 | O60: 4.4 | P60: 8.2 | Q60: 6.3 | S60: -0.15 | T60: 6.45 | V60: =IF(Suivi[[#This Row],[HC - Kw Total énergie]]="","",Suivi[[#This Row],[Montant Total Energie]]/Suivi[[#This Row],[Total KW Total énergie]]) -> 0
A61: 2022-01-10 | B61: 01 22 | C61: 2 | D61: 12.59 | E61: 31.415 | F61: 44.005 | K61: 91.143 | L61: 44.005 | M61: -47.138 | N61: 5.22 | O61: 6.9 | P61: 9.2 | Q61: 8.05 | S61: 0.7 | T61: 7.35 | V61: =IF(Suivi[[#This Row],[HC - Kw Total énergie]]="","",Suivi[[#This Row],[Montant Total Energie]]/Suivi[[#This Row],[Total KW Total énergie]]) -> 0
A62: 2022-01-11 | B62: 01 22 | C62: 2 | D62: 10.318 | E62: 30.312 | F62: 40.63 | K62: 88.112 | L62: 40.63 | M62: -47.482 | N62: 5.26 | O62: 6.4 | P62: 8.2 | Q62: 7.3 | S62: 2.65 | T62: 4.65 | V62: =IF(Suivi[[#This Row],[HC - Kw Total énergie]]="","",Suivi[[#This Row],[Montant Total Energie]]/Suivi[[#This Row],[Total KW Total énergie]]) -> 0
A63: 2022-01-12 | B63: 01 22 | C63: 2 | D63: 9.71 | E63: 34.075 | F63: 43.785 | K63: 72.919 | L63: 43.785 | M63: -29.134 | N63: 10 | O63: 5.9 | P63: 10.3 | Q63: 8.1 | S63: 7.6 | T63: 0.5 | V63: =IF(Suivi[[#This Row],[HC - Kw Total énergie]]="","",Suivi[[#This Row],[Montant Total Energie]]/Suivi[[#This Row],[Total KW Total énergie]]) -> 0
A64: 2022-01-13 | B64: 01 22 | C64: 2 | D64: 13.663 | E64: 31.191 | F64: 44.854 | K64: 60.37 | L64: 44.854 | M64: -15.516 | N64: 5.89 | O64: 3.1 | P64: 8 | Q64: 5.55 | S64: 9.3 | T64: -3.75 | V64: =IF(Suivi[[#This Row],[HC - Kw Total énergie]]="","",Suivi[[#This Row],[Montant Total Energie]]/Suivi[[#This Row],[Total KW Total énergie]]) -> 0
A65: 2022-01-14 | B65: 01 22 | C65: 2 | D65: 18.702 | E65: 37.859 | F65: 56.561 | K65: 64.523 | L65: 56.561 | M65: -7.962 | N65: 6.51 | O65: -1.9 | P65: 1.7 | Q65: -0.1 | S65: 9 | T65: -9.1 | V65: =IF(Suivi[[#This Row],[HC - Kw Total énergie]]="","",Suivi[[#This Row],[Montant Total Energie]]/Suivi[[#This Row],[Total KW Total énergie]]) -> 0
A66: 2022-01-15 | B66: 01 22 | C66: 2 | D66: 22.233 | E66: 38.024 | F66: 60.257 | K66: 71.562 | L66: 60.257 | M66: -11.305 | N66: 6.33 | O66: -1.2 | P66: 2.6 | Q66: 0.7 | S66: 4.1 | T66: -3.4 | V66: =IF(Suivi[[#This Row],[HC - Kw Total énergie]]="","",Suivi[[#This Row],[Montant Total Energie]]/Suivi[[#This Row],[Total KW Total énergie]]) -> 0
A67: 2022-01-16 | B67: 01 22 | C67: 3 | D67: 24.288 | E67: 43.609 | F67: 67.897 | K67: 60.703 | L67: 67.897 | M67: 7.194 | N67: 7.52 | O67: 0.9 | P67: 8.1 | Q67: 4.5 | S67: 4.65 | T67: -0.15 | V67: =IF(Suivi[[#This Row],[HC - Kw Total énergie]]="","",Suivi[[#This Row],[Montant Total Energie]]/Suivi[[#This Row],[Total KW Total énergie]]) -> 0
A68: 2022-01-17 | B68: 01 22 | C68: 3 | D68: 13.974 | E68: 31.112 | F68: 45.086 | K68: 67.791 | L68: 45.086 | M68: -22.705 | N68: 6.8 | O68: 4.8 | P68: 8.6 | Q68: 6.7 | S68: 7 | T68: -0.3 | V68: =IF(Suivi[[#This Row],[HC - Kw Total énergie]]="","",Suivi[[#This Row],[Montant Total Energie]]/Suivi[[#This Row],[Total KW Total énergie]]) -> 0
A69: 2022-01-18 | B69: 01 22 | C69: 3 | D69: 17.27 | E69: 35.235 | F69: 52.505 | K69: 72.896 | L69: 52.505 | M69: -20.391 | N69: 6.35 | O69: 2.8 | P69: 6.9 | Q69: 4.85 | S69: 4.4 | T69: 0.45 | V69: =IF(Suivi[[#This Row],[HC - Kw Total énergie]]="","",Suivi[[#This Row],[Montant Total Energie]]/Suivi[[#This Row],[Total KW Total énergie]]) -> 0
A70: 2022-01-19 | B70: 01 22 | C70: 3 | D70: 13.648 | E70: 36.36 | F70: 50.008 | K70: 66.715 | L70: 50.008 | M70: -16.707 | N70: 5.3 | O70: 4.3 | P70: 8.7 | Q70: 6.5 | S70: 7.1 | T70: -0.6 | V70: =IF(Suivi[[#This Row],[HC - Kw Total énergie]]="","",Suivi[[#This Row],[Montant Total Energie]]/Suivi[[#This Row],[Total KW Total énergie]]) -> 0
A71: 2022-01-20 | B71: 01 22 | C71: 3 | D71: 15.137 | E71: 37.745 | F71: 52.882 | K71: 67.191 | L71: 52.882 | M71: -14.309 | N71: 6.54 | O71: 1.8 | P71: 7.7 | Q71: 4.75 | S71: 9.05 | T71: -4.3 | V71: =IF(Suivi[[#This Row],[HC - Kw Total énergie]]="","",Suivi[[#This Row],[Montant Total Energie]]/Suivi[[#This Row],[Total KW Total énergie]]) -> 0
A72: 2022-01-21 | B72: 01 22 | C72: 3 | D72: 16.881 | E72: 41.9 | F72: 58.781 | K72: 65.149 | L72: 58.781 | M72: -6.368 | N72: 4.28 | O72: 0.5 | P72: 6.5 | Q72: 3.5 | S72: 7.6 | T72: -4.1 | V72: =IF(Suivi[[#This Row],[HC - Kw Total énergie]]="","",Suivi[[#This Row],[Montant Total Energie]]/Suivi[[#This Row],[Total KW Total énergie]]) -> 0
A73: 2022-01-22 | B73: 01 22 | C73: 3 | D73: 21.892 | E73: 40.319 | F73: 62.211 | K73: 65.348 | L73: 62.211 | M73: -3.137 | N73: 5.31 | O73: -1.1 | P73: 6.2 | Q73: 2.55 | S73: 5.2 | T73: -2.65 | V73: =IF(Suivi[[#This Row],[HC - Kw Total énergie]]="","",Suivi[[#This Row],[Montant Total Energie]]/Suivi[[#This Row],[Total KW Total énergie]]) -> 0
A74: 2022-01-23 | B74: 01 22 | C74: 3 | D74: 21.666 | E74: 43.795 | F74: 65.461 | K74: 59.944 | L74: 65.461 | M74: 5.517 | N74: 6.04 | O74: 3 | P74: 3.9 | Q74: 3.45 | S74: 4.4 | T74: -0.95 | V74: =IF(Suivi[[#This Row],[HC - Kw Total énergie]]="","",Suivi[[#This Row],[Montant Total Energie]]/Suivi[[#This Row],[Total KW Total énergie]]) -> 0
A75: 2022-01-24 | B75: 01 22 | C75: 3 | D75: 23.991 | E75: 38.448 | F75: 62.439 | K75: 66.3 | L75: 62.439 | M75: -3.861 | N75: 7.66 | O75: -1.5 | P75: 8 | Q75: 3.25 | S75: 3.2 | T75: 0.05 | V75: =IF(Suivi[[#This Row],[HC - Kw Total énergie]]="","",Suivi[[#This Row],[Montant Total Energie]]/Suivi[[#This Row],[Total KW Total énergie]]) -> 0
A76: 2022-01-25 | B76: 01 22 | C76: 3 | D76: 23.796 | E76: 44.499 | F76: 68.295 | K76: 60.111 | L76: 68.295 | M76: 8.184 | N76: 6.05 | O76: -1.41 | P76: 1 | Q76: -0.205 | S76: 3.45 | T76: -3.655 | V76: =IF(Suivi[[#This Row],[HC - Kw Total énergie]]="","",Suivi[[#This Row],[Montant Total Energie]]/Suivi[[#This Row],[Total KW Total énergie]]) -> 0
A77: 2022-01-26 | B77: 01 22 | C77: 3 | D77: 20.95 | E77: 40.282 | F77: 61.232 | K77: 79.613 | L77: 61.232 | M77: -18.381 | N77: 5.63 | O77: -0.6 | P77: 5.4 | Q77: 2.4 | S77: 2.15 | T77: 0.25 | V77: =IF(Suivi[[#This Row],[HC - Kw Total énergie]]="","",Suivi[[#This Row],[Montant Total Energie]]/Suivi[[#This Row],[Total KW Total énergie]]) -> 0
A78: 2022-01-27 | B78: 01 22 | C78: 3 | D78: 23.192 | E78: 35.38 | F78: 58.572 | K78: 57.536 | L78: 58.572 | M78: 1.036 | N78: 6.8 | O78: 2.5 | P78: 7.8 | Q78: 5.15 | S78: 6.9 | T78: -1.75 | V78: =IF(Suivi[[#This Row],[HC - Kw Total énergie]]="","",Suivi[[#This Row],[Montant Total Energie]]/Suivi[[#This Row],[Total KW Total énergie]]) -> 0
A79: 2022-01-28 | B79: 01 22 | C79: 3 | D79: 18.662 | E79: 37.024 | F79: 55.686 | K79: 33.383 | L79: 55.686 | M79: 22.303 | N79: 5.17 | O79: 6.2 | P79: 9.4 | Q79: 7.8 | S79: 11.8 | T79: -4 | V79: =IF(Suivi[[#This Row],[HC - Kw Total énergie]]="","",Suivi[[#This Row],[Montant Total Energie]]/Suivi[[#This Row],[Total KW Total énergie]]) -> 0
A80: 2022-01-29 | B80: 01 22 | C80: 3 | D80: 17.552 | E80: 29.312 | F80: 46.864 | K80: 38.495 | L80: 46.864 | M80: 8.369 | N80: 5.04 | O80: 8.1 | P80: 10.1 | Q80: 9.1 | S80: 10.85 | T80: -1.75 | V80: =IF(Suivi[[#This Row],[HC - Kw Total énergie]]="","",Suivi[[#This Row],[Montant Total Energie]]/Suivi[[#This Row],[Total KW Total énergie]]) -> 0
A81: 2022-01-30 | B81: 01 22 | C81: 3 | D81: 17.932 | E81: 30.118 | F81: 48.05 | K81: 38.208 | L81: 48.05 | M81: 9.842 | N81: 6.55 | O81: 5.5 | P81: 10.1 | Q81: 7.8 | S81: 9.65 | T81: -1.85 | V81: =IF(Suivi[[#This Row],[HC - Kw Total énergie]]="","",Suivi[[#This Row],[Montant Total Energie]]/Suivi[[#This Row],[Total KW Total énergie]]) -> 0
A82: 2022-01-31 | B82: 01 22 | C82: 3 | D82: 18.721 | E82: 33.164 | F82: 51.885 | K82: 40.283 | L82: 51.885 | M82: 11.602 | N82: 5.13 | O82: 3.3 | P82: 8.9 | Q82: 6.1 | S82: 8.95 | T82: -2.85 | V82: =IF(Suivi[[#This Row],[HC - Kw Total énergie]]="","",Suivi[[#This Row],[Montant Total Energie]]/Suivi[[#This Row],[Total KW Total énergie]]) -> 0
A83: 2022-02-01 | B83: 02 22 | C83: 3 | D83: 18.422 | E83: 35.419 | F83: 53.841 | K83: 37.896 | L83: 53.841 | M83: 15.945 | N83: 4.85 | O83: 3.1 | P83: 9.8 | Q83: 6.45 | S83: 10.65 | T83: -4.2 | V83: =IF(Suivi[[#This Row],[HC - Kw Total énergie]]="","",Suivi[[#This Row],[Montant Total Energie]]/Suivi[[#This Row],[Total KW Total énergie]]) -> 0
A84: 2022-02-02 | B84: 02 22 | C84: 3 | D84: 16.961 | E84: 28.746 | F84: 45.707 | K84: 34.124 | L84: 45.707 | M84: 11.583 | N84: 5.96 | O84: 8 | P84: 9.9 | Q84: 8.95 | S84: 11.6 | T84: -2.65 | V84: =IF(Suivi[[#This Row],[HC - Kw Total énergie]]="","",Suivi[[#This Row],[Montant Total Energie]]/Suivi[[#This Row],[Total KW Total énergie]]) -> 0
A85: 2022-02-03 | B85: 02 22 | C85: 3 | D85: 15.804 | E85: 29.17 | F85: 44.974 | K85: 38.335 | L85: 44.974 | M85: 6.639 | N85: 4.45 | O85: 5.3 | P85: 9.1 | Q85: 7.2 | S85: 9.35 | T85: -2.15 | V85: =IF(Suivi[[#This Row],[HC - Kw Total énergie]]="","",Suivi[[#This Row],[Montant Total Energie]]/Suivi[[#This Row],[Total KW Total énergie]]) -> 0
A86: 2022-02-04 | B86: 02 22 | C86: 3 | D86: 14.636 | E86: 30.183 | F86: 44.819 | K86: 37.917 | L86: 44.819 | M86: 6.902 | N86: 5.93 | O86: 6 | P86: 10.7 | Q86: 8.35 | S86: 9.15 | T86: -0.8 | V86: =IF(Suivi[[#This Row],[HC - Kw Total énergie]]="","",Suivi[[#This Row],[Montant Total Energie]]/Suivi[[#This Row],[Total KW Total énergie]]) -> 0
A87: 2022-02-05 | B87: 02 22 | C87: 3 | D87: 19.293 | E87: 28.785 | F87: 48.078 | K87: 43.153 | L87: 48.078 | M87: 4.925 | N87: 5.56 | O87: 0.8 | P87: 11 | Q87: 5.9 | S87: 8.55 | T87: -2.65 | V87: =IF(Suivi[[#This Row],[HC - Kw Total énergie]]="","",Suivi[[#This Row],[Montant Total Energie]]/Suivi[[#This Row],[Total KW Total énergie]]) -> 0
A88: 2022-02-06 | B88: 02 22 | C88: 3 | D88: 15.991 | E88: 27.144 | F88: 43.135 | K88: 47.142 | L88: 43.135 | M88: -4.007 | N88: 5.06 | O88: 7.6 | P88: 12.5 | Q88: 10.05 | S88: 6.9 | T88: 3.15 | V88: =IF(Suivi[[#This Row],[HC - Kw Total énergie]]="","",Suivi[[#This Row],[Montant Total Energie]]/Suivi[[#This Row],[Total KW Total énergie]]) -> 0
A89: 2022-02-07 | B89: 02 22 | C89: 3 | D89: 16.211 | E89: 25.764 | F89: 41.975 | K89: 53.742 | L89: 41.975 | M89: -11.767 | N89: 4.74 | O89: 4.9 | P89: 11.7 | Q89: 8.3 | S89: 3.45 | T89: 4.85 | V89: =IF(Suivi[[#This Row],[HC - Kw Total énergie]]="","",Suivi[[#This Row],[Montant Total Energie]]/Suivi[[#This Row],[Total KW Total énergie]]) -> 0
A90: 2022-02-08 | B90: 02 22 | C90: 3 | D90: 16.808 | E90: 29.373 | F90: 46.181 | K90: 67.701 | L90: 46.181 | M90: -21.52 | N90: 5.18 | O90: 5.9 | P90: 9 | Q90: 7.45 | S90: 1.6 | T90: 5.85 | V90: =IF(Suivi[[#This Row],[HC - Kw Total énergie]]="","",Suivi[[#This Row],[Montant Total Energie]]/Suivi[[#This Row],[Total KW Total énergie]]) -> 0
A91: 2022-02-09 | B91: 02 22 | C91: 3 | D91: 22.307 | E91: 34.543 | F91: 56.85 | K91: 66.36 | L91: 56.85 | M91: -9.51 | N91: 6.29 | O91: 3.4 | P91: 6.6 | Q91: 5 | S91: 0.05 | T91: 4.95 | V91: =IF(Suivi[[#This Row],[HC - Kw Total énergie]]="","",Suivi[[#This Row],[Montant Total Energie]]/Suivi[[#This Row],[Total KW Total énergie]]) -> 0
A92: 2022-02-10 | B92: 02 22 | C92: 3 | D92: 19.142 | E92: 30.068 | F92: 49.21 | K92: 67.006 | L92: 49.21 | M92: -17.796 | N92: 6.12 | O92: 4.5 | P92: 11.3 | Q92: 7.9 | S92: -3.25 | T92: 11.15 | V92: =IF(Suivi[[#This Row],[HC - Kw Total énergie]]="","",Suivi[[#This Row],[Montant Total Energie]]/Suivi[[#This Row],[Total KW Total énergie]]) -> 0
A93: 2022-02-11 | B93: 02 22 | C93: 3 | D93: 21.782 | E93: 32.781 | F93: 54.563 | K93: 73.922 | L93: 54.563 | M93: -19.359 | N93: 6.6 | O93: -2.1 | P93: 9.7 | Q93: 3.8 | S93: -4.15 | T93: 7.95 | V93: =IF(Suivi[[#This Row],[HC - Kw Total énergie]]="","",Suivi[[#This Row],[Montant Total Energie]]/Suivi[[#This Row],[Total KW Total énergie]]) -> 0
A94: 2022-02-12 | B94: 02 22 | C94: 3 | D94: 23.938 | E94: 36.232 | F94: 60.17 | K94: 64.8 | L94: 60.17 | M94: -4.63 | N94: 5.96 | O94: -2.2 | P94: 7.7 | Q94: 2.75 | S94: -0.25 | T94: 3 | V94: =IF(Suivi[[#This Row],[HC - Kw Total énergie]]="","",Suivi[[#This Row],[Montant Total Energie]]/Suivi[[#This Row],[Total KW Total énergie]]) -> 0
A95: 2022-02-13 | B95: 02 22 | C95: 3 | D95: 20.524 | E95: 30.728 | F95: 51.252 | K95: 58.84 | L95: 51.252 | M95: -7.588 | N95: 5.64 | O95: 2.9 | P95: 10.6 | Q95: 6.75 | S95: -2.35 | T95: 9.1 | V95: =IF(Suivi[[#This Row],[HC - Kw Total énergie]]="","",Suivi[[#This Row],[Montant Total Energie]]/Suivi[[#This Row],[Total KW Total énergie]]) -> 0
A96: 2022-02-14 | B96: 02 22 | C96: 3 | D96: 13.97 | E96: 27.709 | F96: 41.679 | K96: 60.301 | L96: 41.679 | M96: -18.622 | N96: 5.46 | O96: 4.4 | P96: 10.9 | Q96: 7.65 | S96: 1.8 | T96: 5.85 | V96: =IF(Suivi[[#This Row],[HC - Kw Total énergie]]="","",Suivi[[#This Row],[Montant Total Energie]]/Suivi[[#This Row],[Total KW Total énergie]]) -> 0
A97: 2022-02-15 | B97: 02 22 | C97: 3 | D97: 16.22 | E97: 28.883 | F97: 45.103 | K97: 47.364 | L97: 45.103 | M97: -2.261 | N97: 4.99 | O97: 3.4 | P97: 12.2 | Q97: 7.8 | S97: 7.42 | T97: 0.38 | V97: =IF(Suivi[[#This Row],[HC - Kw Total énergie]]="","",Suivi[[#This Row],[Montant Total Energie]]/Suivi[[#This Row],[Total KW Total énergie]]) -> 0
A98: 2022-02-16 | B98: 02 22 | C98: 4 | D98: 12.11 | E98: 22.141 | F98: 34.251 | K98: 47.92 | L98: 34.251 | M98: -13.669 | N98: 4.29 | O98: 9.2 | P98: 14.6 | Q98: 11.9 | S98: 8.9 | T98: 3 | V98: =IF(Suivi[[#This Row],[HC - Kw Total énergie]]="","",Suivi[[#This Row],[Montant Total Energie]]/Suivi[[#This Row],[Total KW Total énergie]]) -> 0
A99: 2022-02-17 | B99: 02 22 | C99: 4 | D99: 15.381 | E99: 20.135 | F99: 35.516 | K99: 35.475 | L99: 35.516 | M99: 0.041 | N99: 6.22 | O99: 8.8 | P99: 14 | Q99: 11.4 | S99: 10.4 | T99: 1 | V99: =IF(Suivi[[#This Row],[HC - Kw Total énergie]]="","",Suivi[[#This Row],[Montant Total Energie]]/Suivi[[#This Row],[Total KW Total énergie]]) -> 0
A100: 2022-02-18 | B100: 02 22 | C100: 4 | D100: 10.869 | E100: 22.511 | F100: 33.38 | K100: 40.677 | L100: 33.38 | M100: -7.297 | N100: 5.67 | O100: 7.7 | P100: 11.7 | Q100: 9.7 | S100: 9.25 | T100: 0.45 | V100: =IF(Suivi[[#This Row],[HC - Kw Total énergie]]="","",Suivi[[#This Row],[Montant Total Energie]]/Suivi[[#This Row],[Total KW Total énergie]]) -> 0
A101: 2022-02-19 | B101: 02 22 | C101: 4 | D101: 18.84 | E101: 25.843 | F101: 44.683 | K101: 45.74 | L101: 44.683 | M101: -1.057 | N101: 5.73 | O101: 1.9 | P101: 11.4 | Q101: 6.65 | S101: 9.45 | T101: -2.8 | V101: =IF(Suivi[[#This Row],[HC - Kw Total énergie]]="","",Suivi[[#This Row],[Montant Total Energie]]/Suivi[[#This Row],[Total KW Total énergie]]) -> 0
A102: 2022-02-20 | B102: 02 22 | C102: 4 | D102: 13.078 | E102: 22.995 | F102: 36.073 | K102: 27.79 | L102: 36.073 | M102: 8.283 | N102: 4.16 | O102: 7.5 | P102: 13.5 | Q102: 10.5 | S102: 13.25 | T102: -2.75 | V102: =IF(Suivi[[#This Row],[HC - Kw Total énergie]]="","",Suivi[[#This Row],[Montant Total Energie]]/Suivi[[#This Row],[Total KW Total énergie]]) -> 0
A103: 2022-02-21 | B103: 02 22 | C103: 4 | D103: 14.615 | E103: 25.132 | F103: 39.747 | K103: 33.305 | L103: 39.747 | M103: 6.442 | N103: 4.6 | O103: 6.1 | P103: 11.3 | Q103: 8.7 | S103: 11.45 | T103: -2.75 | V103: =IF(Suivi[[#This Row],[HC - Kw Total énergie]]="","",Suivi[[#This Row],[Montant Total Energie]]/Suivi[[#This Row],[Total KW Total énergie]]) -> 0
A104: 2022-02-22 | B104: 02 22 | C104: 4 | D104: 14.826 | E104: 24.759 | F104: 39.585 | K104: 37.198 | L104: 39.585 | M104: 2.387 | N104: 5.99 | O104: 6.3 | P104: 14.9 | Q104: 10.6 | S104: 10.1 | T104: 0.5 | V104: =IF(Suivi[[#This Row],[HC - Kw Total énergie]]="","",Suivi[[#This Row],[Montant Total Energie]]/Suivi[[#This Row],[Total KW Total énergie]]) -> 0
A105: 2022-02-23 | B105: 02 22 | C105: 4 | D105: 13.662 | E105: 25.65 | F105: 39.312 | K105: 30.138 | L105: 39.312 | M105: 9.174 | N105: 4.76 | O105: 2.5 | P105: 10.8 | Q105: 6.65 | S105: 10.95 | T105: -4.3 | V105: =IF(Suivi[[#This Row],[HC - Kw Total énergie]]="","",Suivi[[#This Row],[Montant Total Energie]]/Suivi[[#This Row],[Total KW Total énergie]]) -> 0
A106: 2022-02-24 | B106: 02 22 | C106: 4 | D106: 17.894 | E106: 28.931 | F106: 46.825 | K106: 27.937 | L106: 46.825 | M106: 18.888 | N106: 5.09 | O106: 6.4 | P106: 10.2 | Q106: 8.3 | S106: 12.95 | T106: -4.65 | V106: =IF(Suivi[[#This Row],[HC - Kw Total énergie]]="","",Suivi[[#This Row],[Montant Total Energie]]/Suivi[[#This Row],[Total KW Total énergie]]) -> 0
A107: 2022-02-25 | B107: 02 22 | C107: 4 | D107: 20.031 | E107: 27.277 | F107: 47.308 | K107: 30.021 | L107: 47.308 | M107: 17.287 | N107: 6.97 | O107: 1.9 | P107: 11 | Q107: 6.45 | S107: 9.7 | T107: -3.25 | V107: =IF(Suivi[[#This Row],[HC - Kw Total énergie]]="","",Suivi[[#This Row],[Montant Total Energie]]/Suivi[[#This Row],[Total KW Total énergie]]) -> 0
A108: 2022-02-26 | B108: 02 22 | C108: 4 | D108: 17.965 | E108: 27.331 | F108: 45.296 | K108: 31.407 | L108: 45.296 | M108: 13.889 | N108: 4.57 | O108: -0.9 | P108: 11 | Q108: 5.05 | S108: 6.5 | T108: -1.45 | V108: =IF(Suivi[[#This Row],[HC - Kw Total énergie]]="","",Suivi[[#This Row],[Montant Total Energie]]/Suivi[[#This Row],[Total KW Total énergie]]) -> 0
A109: 2022-02-27 | B109: 02 22 | C109: 4 | D109: 16.132 | E109: 26.778 | F109: 42.91 | K109: 36.545 | L109: 42.91 | M109: 6.365 | N109: 4.28 | O109: 1.2 | P109: 11.8 | Q109: 6.5 | S109: 5.95 | T109: 0.55 | V109: =IF(Suivi[[#This Row],[HC - Kw Total énergie]]="","",Suivi[[#This Row],[Montant Total Energie]]/Suivi[[#This Row],[Total KW Total énergie]]) -> 0
A110: 2022-02-28 | B110: 02 22 | C110: 4 | D110: 15.093 | E110: 23.648 | F110: 38.741 | K110: 41.49 | L110: 38.741 | M110: -2.749 | N110: 5.95 | O110: 2.8 | P110: 14.8 | Q110: 8.8 | S110: 6.3 | T110: 2.5 | V110: =IF(Suivi[[#This Row],[HC - Kw Total énergie]]="","",Suivi[[#This Row],[Montant Total Energie]]/Suivi[[#This Row],[Total KW Total énergie]]) -> 0
A111: 2022-03-01 | B111: 03 22 | C111: 4 | D111: 10.441 | E111: 20.92 | F111: 31.361 | K111: 32.697 | L111: 31.361 | M111: -1.336 | N111: 3.97 | O111: 8.9 | P111: 13.8 | Q111: 11.35 | S111: 5.3 | T111: 6.05 | V111: =IF(Suivi[[#This Row],[HC - Kw Total énergie]]="","",Suivi[[#This Row],[Montant Total Energie]]/Suivi[[#This Row],[Total KW Total énergie]]) -> 0
A112: 2022-03-02 | B112: 03 22 | C112: 4 | D112: 12.36 | E112: 19.925 | F112: 32.285 | K112: 32.63 | L112: 32.285 | M112: -0.345 | N112: 4.16 | O112: 8.4 | P112: 14.2 | Q112: 11.3 | S112: 8.9 | T112: 2.4 | V112: =IF(Suivi[[#This Row],[HC - Kw Total énergie]]="","",Suivi[[#This Row],[Montant Total Energie]]/Suivi[[#This Row],[Total KW Total énergie]]) -> 0
A113: 2022-03-03 | B113: 03 22 | C113: 4 | D113: 12.166 | E113: 20.912 | F113: 33.078 | K113: 28.345 | L113: 33.078 | M113: 4.733 | N113: 5.37 | O113: 6.9 | P113: 10.9 | Q113: 8.9 | S113: 11.35 | T113: -2.45 | V113: =IF(Suivi[[#This Row],[HC - Kw Total énergie]]="","",Suivi[[#This Row],[Montant Total Energie]]/Suivi[[#This Row],[Total KW Total énergie]]) -> 0
A114: 2022-03-04 | B114: 03 22 | C114: 4 | D114: 11.462 | E114: 21.304 | F114: 32.766 | K114: 31.716 | L114: 32.766 | M114: 1.05 | N114: 5.36 | O114: 7.4 | P114: 10.5 | Q114: 8.95 | S114: 9.75 | T114: -0.8 | V114: =IF(Suivi[[#This Row],[HC - Kw Total énergie]]="","",Suivi[[#This Row],[Montant Total Energie]]/Suivi[[#This Row],[Total KW Total énergie]]) -> 0
A115: 2022-03-05 | B115: 03 22 | C115: 4 | D115: 15.869 | E115: 27.261 | F115: 43.13 | K115: 42.279 | L115: 43.13 | M115: 0.851 | N115: 4.92 | O115: 2.5 | P115: 9.7 | Q115: 6.1 | S115: 6.75 | T115: -0.65 | V115: =IF(Suivi[[#This Row],[HC - Kw Total énergie]]="","",Suivi[[#This Row],[Montant Total Energie]]/Suivi[[#This Row],[Total KW Total énergie]]) -> 0
A116: 2022-03-06 | B116: 03 22 | C116: 4 | D116: 15.929 | E116: 28.343 | F116: 44.272 | K116: 50.184 | L116: 44.272 | M116: -5.912 | N116: 7 | O116: 5.5 | P116: 9.8 | Q116: 7.65 | S116: 4.6 | T116: 3.05 | V116: =IF(Suivi[[#This Row],[HC - Kw Total énergie]]="","",Suivi[[#This Row],[Montant Total Energie]]/Suivi[[#This Row],[Total KW Total énergie]]) -> 0
A117: 2022-03-07 | B117: 03 22 | C117: 4 | D117: 17.66 | E117: 33.564 | F117: 51.224 | K117: 46.087 | L117: 51.224 | M117: 5.137 | N117: 8.08 | O117: -1 | P117: 7 | Q117: 3 | S117: 3.45 | T117: -0.45 | V117: =IF(Suivi[[#This Row],[HC - Kw Total énergie]]="","",Suivi[[#This Row],[Montant Total Energie]]/Suivi[[#This Row],[Total KW Total énergie]]) -> 0
A118: 2022-03-08 | B118: 03 22 | C118: 4 | D118: 17.979 | E118: 30.558 | F118: 48.537 | K118: 50.571 | L118: 48.537 | M118: -2.034 | N118: 5.4 | O118: 1.9 | P118: 10.8 | Q118: 6.35 | S118: 2.85 | T118: 3.5 | V118: =IF(Suivi[[#This Row],[HC - Kw Total énergie]]="","",Suivi[[#This Row],[Montant Total Energie]]/Suivi[[#This Row],[Total KW Total énergie]]) -> 0
A119: 2022-03-09 | B119: 03 22 | C119: 4 | D119: 13.483 | E119: 22.921 | F119: 36.404 | K119: 49.744 | L119: 36.404 | M119: -13.34 | N119: 6.11 | O119: 7.2 | P119: 14.1 | Q119: 10.65 | S119: 4.5 | T119: 6.15 | V119: =IF(Suivi[[#This Row],[HC - Kw Total énergie]]="","",Suivi[[#This Row],[Montant Total Energie]]/Suivi[[#This Row],[Total KW Total énergie]]) -> 0
A120: 2022-03-10 | B120: 03 22 | C120: 4 | D120: 13.163 | E120: 25.189 | F120: 38.352 | K120: 48.631 | L120: 38.352 | M120: -10.279 | N120: 4.45 | O120: 8.1 | P120: 12.3 | Q120: 10.2 | S120: 7 | T120: 3.2 | V120: =IF(Suivi[[#This Row],[HC - Kw Total énergie]]="","",Suivi[[#This Row],[Montant Total Energie]]/Suivi[[#This Row],[Total KW Total énergie]]) -> 0
A121: 2022-03-11 | B121: 03 22 | C121: 4 | D121: 13.442 | E121: 26.495 | F121: 39.937 | K121: 35.758 | L121: 39.937 | M121: 4.179 | N121: 4.52 | O121: 7.7 | P121: 13.1 | Q121: 10.4 | S121: 11.05 | T121: -0.65 | V121: =IF(Suivi[[#This Row],[HC - Kw Total énergie]]="","",Suivi[[#This Row],[Montant Total Energie]]/Suivi[[#This Row],[Total KW Total énergie]]) -> 0
A122: 2022-03-12 | B122: 03 22 | C122: 4 | D122: 14.381 | E122: 20.29 | F122: 34.671 | K122: 48.255 | L122: 34.671 | M122: -13.584 | N122: 6.37 | O122: 5.5 | P122: 13.9 | Q122: 9.7 | S122: 8.55 | T122: 1.15 | V122: =IF(Suivi[[#This Row],[HC - Kw Total énergie]]="","",Suivi[[#This Row],[Montant Total Energie]]/Suivi[[#This Row],[Total KW Total énergie]]) -> 0
A123: 2022-03-13 | B123: 03 22 | C123: 4 | D123: 12.398 | E123: 24.342 | F123: 36.74 | K123: 44.311 | L123: 36.74 | M123: -7.571 | N123: 4.49 | O123: 7.1 | P123: 12.1 | Q123: 9.6 | S123: 8.85 | T123: 0.75 | V123: =IF(Suivi[[#This Row],[HC - Kw Total énergie]]="","",Suivi[[#This Row],[Montant Total Energie]]/Suivi[[#This Row],[Total KW Total énergie]]) -> 0
A124: 2022-03-14 | B124: 03 22 | C124: 4 | D124: 12.804 | E124: 18.651 | F124: 31.455 | K124: 36.472 | L124: 31.455 | M124: -5.017 | N124: 4.02 | O124: 5.3 | P124: 14.7 | Q124: 10 | S124: 8.25 | T124: 1.75 | V124: =IF(Suivi[[#This Row],[HC - Kw Total énergie]]="","",Suivi[[#This Row],[Montant Total Energie]]/Suivi[[#This Row],[Total KW Total énergie]]) -> 0
A125: 2022-03-15 | B125: 03 22 | C125: 4 | D125: 10.273 | E125: 19.988 | F125: 30.261 | K125: 35.779 | L125: 30.261 | M125: -5.518 | N125: 5.46 | O125: 6.5 | P125: 14.4 | Q125: 10.45 | S125: 10.15 | T125: 0.3 | V125: =IF(Suivi[[#This Row],[HC - Kw Total énergie]]="","",Suivi[[#This Row],[Montant Total Energie]]/Suivi[[#This Row],[Total KW Total énergie]]) -> 0
A126: 2022-03-16 | B126: 03 22 | C126: 5 | D126: 11.283 | E126: 21.111 | F126: 32.394 | K126: 34.389 | L126: 32.394 | M126: -1.995 | N126: 4.42 | O126: 8.3 | P126: 13 | Q126: 10.65 | S126: 11.7 | T126: -1.05 | V126: =IF(Suivi[[#This Row],[HC - Kw Total énergie]]="","",Suivi[[#This Row],[Montant Total Energie]]/Suivi[[#This Row],[Total KW Total énergie]]) -> 0
A127: 2022-03-17 | B127: 03 22 | C127: 5 | D127: 13.108 | E127: 21.536 | F127: 34.644 | K127: 30.552 | L127: 34.644 | M127: 4.092 | N127: 4.15 | O127: 5.2 | P127: 12.8 | Q127: 9 | S127: 9 | T127: 0 | V127: =IF(Suivi[[#This Row],[HC - Kw Total énergie]]="","",Suivi[[#This Row],[Montant Total Energie]]/Suivi[[#This Row],[Total KW Total énergie]]) -> 0
A128: 2022-03-18 | B128: 03 22 | C128: 5 | D128: 15.362 | E128: 18.689 | F128: 34.051 | K128: 37.78 | L128: 34.051 | M128: -3.729 | N128: 5.84 | O128: 0.9 | P128: 15.4 | Q128: 8.15 | S128: 6 | T128: 2.15 | V128: =IF(Suivi[[#This Row],[HC - Kw Total énergie]]="","",Suivi[[#This Row],[Montant Total Energie]]/Suivi[[#This Row],[Total KW Total énergie]]) -> 0
A129: 2022-03-19 | B129: 03 22 | C129: 5 | D129: 11.608 | E129: 22.56 | F129: 34.168 | K129: 32.652 | L129: 34.168 | M129: 1.516 | N129: 4.33 | O129: 5.9 | P129: 14.1 | Q129: 10 | S129: 9.9 | T129: 0.1 | V129: =IF(Suivi[[#This Row],[HC - Kw Total énergie]]="","",Suivi[[#This Row],[Montant Total Energie]]/Suivi[[#This Row],[Total KW Total énergie]]) -> 0
A130: 2022-03-20 | B130: 03 22 | C130: 5 | D130: 11.382 | E130: 17.598 | F130: 28.98 | K130: 34.412 | L130: 28.98 | M130: -5.432 | N130: 4.2 | O130: 3.4 | P130: 14.6 | Q130: 9 | S130: 5.85 | T130: 3.15 | V130: =IF(Suivi[[#This Row],[HC - Kw Total énergie]]="","",Suivi[[#This Row],[Montant Total Energie]]/Suivi[[#This Row],[Total KW Total énergie]]) -> 0
A131: 2022-03-21 | B131: 03 22 | C131: 5 | D131: 9.642 | E131: 14.202 | F131: 23.844 | K131: 39.275 | L131: 23.844 | M131: -15.431 | N131: 5.29 | O131: 5.2 | P131: 17.1 | Q131: 11.15 | S131: 6.65 | T131: 4.5 | V131: =IF(Suivi[[#This Row],[HC - Kw Total énergie]]="","",Suivi[[#This Row],[Montant Total Energie]]/Suivi[[#This Row],[Total KW Total énergie]]) -> 0
A132: 2022-03-22 | B132: 03 22 | C132: 5 | D132: 7.893 | E132: 13.94 | F132: 21.833 | K132: 41.551 | L132: 21.833 | M132: -19.718 | N132: 4.11 | O132: 6.8 | P132: 15.6 | Q132: 11.2 | S132: 5.7 | T132: 5.5 | V132: =IF(Suivi[[#This Row],[HC - Kw Total énergie]]="","",Suivi[[#This Row],[Montant Total Energie]]/Suivi[[#This Row],[Total KW Total énergie]]) -> 0
A133: 2022-03-23 | B133: 03 22 | C133: 5 | D133: 7.83 | E133: 13.508 | F133: 21.338 | K133: 43.018 | L133: 21.338 | M133: -21.68 | N133: 3.85 | O133: 3.1 | P133: 16.3 | Q133: 9.7 | S133: 7.15 | T133: 2.55 | V133: =IF(Suivi[[#This Row],[HC - Kw Total énergie]]="","",Suivi[[#This Row],[Montant Total Energie]]/Suivi[[#This Row],[Total KW Total énergie]]) -> 0
A134: 2022-03-24 | B134: 03 22 | C134: 5 | D134: 9.343 | E134: 14.842 | F134: 24.185 | K134: 33.336 | L134: 24.185 | M134: -9.151 | N134: 5.98 | O134: 0.1 | P134: 19.2 | Q134: 9.65 | S134: 7.1 | T134: 2.55 | V134: =IF(Suivi[[#This Row],[HC - Kw Total énergie]]="","",Suivi[[#This Row],[Montant Total Energie]]/Suivi[[#This Row],[Total KW Total énergie]]) -> 0
A135: 2022-03-25 | B135: 03 22 | C135: 5 | D135: 7.527 | E135: 9.245 | F135: 16.772 | K135: 26.914 | L135: 16.772 | M135: -10.142 | N135: 3.37 | O135: 5.7 | P135: 19.9 | Q135: 12.8 | S135: 9.5 | T135: 3.3 | V135: =IF(Suivi[[#This Row],[HC - Kw Total énergie]]="","",Suivi[[#This Row],[Montant Total Energie]]/Suivi[[#This Row],[Total KW Total énergie]]) -> 0
A136: 2022-03-26 | B136: 03 22 | C136: 5 | D136: 5.666 | E136: 10.365 | F136: 16.031 | K136: 32.798 | L136: 16.031 | M136: -16.767 | N136: 3.31 | O136: 5.5 | P136: 19.9 | Q136: 12.7 | S136: 10.65 | T136: 2.05 | V136: =IF(Suivi[[#This Row],[HC - Kw Total énergie]]="","",Suivi[[#This Row],[Montant Total Energie]]/Suivi[[#This Row],[Total KW Total énergie]]) -> 0
A137: 2022-03-27 | B137: 03 22 | C137: 5 | D137: 6.591 | E137: 10.451 | F137: 17.042 | K137: 32.605 | L137: 17.042 | M137: -15.563 | N137: 5.18 | O137: 5.6 | P137: 20.8 | Q137: 13.2 | S137: 7.9 | T137: 5.3 | V137: =IF(Suivi[[#This Row],[HC - Kw Total énergie]]="","",Suivi[[#This Row],[Montant Total Energie]]/Suivi[[#This Row],[Total KW Total énergie]]) -> 0
A138: 2022-03-28 | B138: 03 22 | C138: 5 | D138: 7.396 | E138: 11.749 | F138: 19.145 | K138: 30.761 | L138: 19.145 | M138: -11.616 | N138: 3.48 | O138: 6.2 | P138: 19.4 | Q138: 12.8 | S138: 9.5 | T138: 3.3 | V138: =IF(Suivi[[#This Row],[HC - Kw Total énergie]]="","",Suivi[[#This Row],[Montant Total Energie]]/Suivi[[#This Row],[Total KW Total énergie]]) -> 0
A139: 2022-03-29 | B139: 03 22 | C139: 5 | D139: 4.855 | E139: 5.584 | F139: 10.439 | K139: 22.852 | L139: 10.439 | M139: -12.413 | N139: 2.79 | O139: 7.5 | P139: 16.7 | Q139: 12.1 | S139: 11.85 | T139: 0.25 | V139: =IF(Suivi[[#This Row],[HC - Kw Total énergie]]="","",Suivi[[#This Row],[Montant Total Energie]]/Suivi[[#This Row],[Total KW Total énergie]]) -> 0
A140: 2022-03-30 | B140: 03 22 | C140: 5 | D140: 5.273 | E140: 12.014 | F140: 17.287 | K140: 16.796 | L140: 17.287 | M140: 0.491 | N140: 3.33 | O140: 9.3 | P140: 10.7 | Q140: 10 | S140: 14.35 | T140: -4.35 | V140: =IF(Suivi[[#This Row],[HC - Kw Total énergie]]="","",Suivi[[#This Row],[Montant Total Energie]]/Suivi[[#This Row],[Total KW Total énergie]]) -> 0
A141: 2022-03-31 | B141: 03 22 | C141: 5 | D141: 8.4 | E141: 21.029 | F141: 29.429 | K141: 14.932 | L141: 29.429 | M141: 14.497 | N141: 4.03 | O141: 2.2 | P141: 7.1 | Q141: 4.65 | S141: 15.1 | T141: -10.45 | V141: =IF(Suivi[[#This Row],[HC - Kw Total énergie]]="","",Suivi[[#This Row],[Montant Total Energie]]/Suivi[[#This Row],[Total KW Total énergie]]) -> 0
A142: 2022-04-01 | B142: 04 22 | C142: 5 | D142: 15.929 | E142: 29.452 | F142: 45.381 | K142: 12.673 | L142: 45.381 | M142: 32.708 | N142: 5.22 | O142: 2.2 | P142: 7.7 | Q142: 4.95 | S142: 17 | T142: -12.05 | V142: =IF(Suivi[[#This Row],[HC - Kw Total énergie]]="","",Suivi[[#This Row],[Montant Total Energie]]/Suivi[[#This Row],[Total KW Total énergie]]) -> 0
A143: 2022-04-02 | B143: 04 22 | C143: 5 | D143: 17.363 | E143: 25.938 | F143: 43.301 | K143: 14.68 | L143: 43.301 | M143: 28.621 | N143: 5.08 | O143: -2 | P143: 9.1 | Q143: 3.55 | S143: 13.1 | T143: -9.55 | V143: =IF(Suivi[[#This Row],[HC - Kw Total énergie]]="","",Suivi[[#This Row],[Montant Total Energie]]/Suivi[[#This Row],[Total KW Total énergie]]) -> 0
A144: 2022-04-03 | B144: 04 22 | C144: 5 | D144: 11.356 | E144: 27.175 | F144: 38.531 | K144: 25.16 | L144: 38.531 | M144: 13.371 | N144: 5.01 | O144: -1.8 | P144: 8.5 | Q144: 3.35 | S144: 7.55 | T144: -4.2 | V144: =IF(Suivi[[#This Row],[HC - Kw Total énergie]]="","",Suivi[[#This Row],[Montant Total Energie]]/Suivi[[#This Row],[Total KW Total énergie]]) -> 0
A145: 2022-04-04 | B145: 04 22 | C145: 5 | D145: 17.51 | E145: 18.039 | F145: 35.549 | K145: 28.323 | L145: 35.549 | M145: 7.226 | N145: 5.05 | O145: -3.9 | P145: 9.6 | Q145: 2.85 | S145: 8.3 | T145: -5.45 | V145: =IF(Suivi[[#This Row],[HC - Kw Total énergie]]="","",Suivi[[#This Row],[Montant Total Energie]]/Suivi[[#This Row],[Total KW Total énergie]]) -> 0
A146: 2022-04-05 | B146: 04 22 | C146: 5 | D146: 8.217 | E146: 11.01 | F146: 19.227 | K146: 33.604 | L146: 19.227 | M146: -14.377 | N146: 3.73 | O146: 7.1 | P146: 13.5 | Q146: 10.3 | S146: 7.1 | T146: 3.2 | V146: =IF(Suivi[[#This Row],[HC - Kw Total énergie]]="","",Suivi[[#This Row],[Montant Total Energie]]/Suivi[[#This Row],[Total KW Total énergie]]) -> 0
A147: 2022-04-06 | B147: 04 22 | C147: 5 | D147: 7.961 | E147: 18.483 | F147: 26.444 | K147: 43.958 | L147: 26.444 | M147: -17.514 | N147: 4.68 | O147: 6.6 | P147: 12.8 | Q147: 9.7 | S147: 3.6 | T147: 6.1 | V147: =IF(Suivi[[#This Row],[HC - Kw Total énergie]]="","",Suivi[[#This Row],[Montant Total Energie]]/Suivi[[#This Row],[Total KW Total énergie]]) -> 0
A148: 2022-04-07 | B148: 04 22 | C148: 5 | D148: 8.108 | E148: 15.275 | F148: 23.383 | K148: 40.81 | L148: 23.383 | M148: -17.427 | N148: 5.85 | O148: 10.2 | P148: 14.3 | Q148: 12.25 | S148: 5.25 | T148: 7 | V148: =IF(Suivi[[#This Row],[HC - Kw Total énergie]]="","",Suivi[[#This Row],[Montant Total Energie]]/Suivi[[#This Row],[Total KW Total énergie]]) -> 0
A149: 2022-04-08 | B149: 04 22 | C149: 5 | D149: 7.373 | E149: 18.753 | F149: 26.126 | K149: 30.527 | L149: 26.126 | M149: -4.401 | N149: 4.81 | O149: 6 | P149: 15 | Q149: 10.5 | S149: 7.3 | T149: 3.2 | V149: =IF(Suivi[[#This Row],[HC - Kw Total énergie]]="","",Suivi[[#This Row],[Montant Total Energie]]/Suivi[[#This Row],[Total KW Total énergie]]) -> 0
A150: 2022-04-09 | B150: 04 22 | C150: 5 | D150: 13.146 | E150: 19.826 | F150: 32.972 | K150: 29.834 | L150: 32.972 | M150: 3.138 | N150: 4.7 | O150: 1.2 | P150: 12.8 | Q150: 7 | S150: 8.55 | T150: -1.55 | V150: =IF(Suivi[[#This Row],[HC - Kw Total énergie]]="","",Suivi[[#This Row],[Montant Total Energie]]/Suivi[[#This Row],[Total KW Total énergie]]) -> 0
A151: 2022-04-10 | B151: 04 22 | C151: 5 | D151: 14.182 | E151: 22.759 | F151: 36.941 | K151: 32.153 | L151: 36.941 | M151: 4.788 | N151: 6.89 | O151: 0 | P151: 14.7 | S151: 9.05 | V151: =IF(Suivi[[#This Row],[HC - Kw Total énergie]]="","",Suivi[[#This Row],[Montant Total Energie]]/Suivi[[#This Row],[Total KW Total énergie]]) -> 0
A152: 2022-04-11 | B152: 04 22 | C152: 5 | D152: 8.343 | E152: 13.902 | F152: 22.245 | K152: 38.008 | L152: 22.245 | M152: -15.763 | N152: 4.79 | O152: 9.5 | P152: 19.9 | Q152: 14.7 | S152: 6.2 | T152: 8.5 | V152: =IF(Suivi[[#This Row],[HC - Kw Total énergie]]="","",Suivi[[#This Row],[Montant Total Energie]]/Suivi[[#This Row],[Total KW Total énergie]]) -> 0
A153: 2022-04-12 | B153: 04 22 | C153: 5 | D153: 11.354 | E153: 14.099 | F153: 25.453 | K153: 38.764 | L153: 25.453 | M153: -13.311 | N153: 4.49 | O153: 10.7 | P153: 14.5 | Q153: 12.6 | S153: 5.75 | T153: 6.85 | V153: =IF(Suivi[[#This Row],[HC - Kw Total énergie]]="","",Suivi[[#This Row],[Montant Total Energie]]/Suivi[[#This Row],[Total KW Total énergie]]) -> 0
A154: 2022-04-13 | B154: 04 22 | C154: 5 | D154: 9.61 | E154: 14.18 | F154: 23.79 | K154: 28.458 | L154: 23.79 | M154: -4.668 | N154: 4.84 | O154: 5 | P154: 19.9 | Q154: 12.45 | S154: 6 | T154: 6.45 | V154: =IF(Suivi[[#This Row],[HC - Kw Total énergie]]="","",Suivi[[#This Row],[Montant Total Energie]]/Suivi[[#This Row],[Total KW Total énergie]]) -> 0
A155: 2022-04-14 | B155: 04 22 | C155: 5 | D155: 9.616 | E155: 11.656 | F155: 21.272 | K155: 32.749 | L155: 21.272 | M155: -11.477 | N155: 4.48 | O155: 6.8 | P155: 21.6 | Q155: 14.2 | S155: 6.45 | T155: 7.75 | V155: =IF(Suivi[[#This Row],[HC - Kw Total énergie]]="","",Suivi[[#This Row],[Montant Total Energie]]/Suivi[[#This Row],[Total KW Total énergie]]) -> 0
A156: 2022-04-15 | B156: 04 22 | C156: 5 | D156: 6.81 | E156: 9.633 | F156: 16.443 | K156: 33.211 | L156: 16.443 | M156: -16.768 | N156: 3.15 | O156: 8 | P156: 22 | Q156: 15 | S156: 7.1 | T156: 7.9 | V156: =IF(Suivi[[#This Row],[HC - Kw Total énergie]]="","",Suivi[[#This Row],[Montant Total Energie]]/Suivi[[#This Row],[Total KW Total énergie]]) -> 0
A157: 2022-04-16 | B157: 04 22 | C157: 6 | D157: 8.259 | E157: 9.489 | F157: 17.748 | K157: 31.559 | L157: 17.748 | M157: -13.811 | N157: 5.02 | O157: 6.2 | P157: 21 | Q157: 13.6 | S157: 5.85 | T157: 7.75 | V157: =IF(Suivi[[#This Row],[HC - Kw Total énergie]]="","",Suivi[[#This Row],[Montant Total Energie]]/Suivi[[#This Row],[Total KW Total énergie]]) -> 0
A158: 2022-04-17 | B158: 04 22 | C158: 6 | D158: 5.888 | E158: 5.958 | F158: 11.846 | K158: 29.805 | L158: 11.846 | M158: -17.959 | N158: 3.13 | O158: 5.3 | P158: 20.1 | Q158: 12.7 | S158: 6.85 | T158: 5.85 | V158: =IF(Suivi[[#This Row],[HC - Kw Total énergie]]="","",Suivi[[#This Row],[Montant Total Energie]]/Suivi[[#This Row],[Total KW Total énergie]]) -> 0
A159: 2022-04-18 | B159: 04 22 | C159: 6 | D159: 4.742 | E159: 2.835 | F159: 7.577 | K159: 30.697 | L159: 7.577 | M159: -23.12 | N159: 2.85 | O159: 10.2 | P159: 15.9 | Q159: 13.05 | S159: 7.2 | T159: 5.85 | V159: =IF(Suivi[[#This Row],[HC - Kw Total énergie]]="","",Suivi[[#This Row],[Montant Total Energie]]/Suivi[[#This Row],[Total KW Total énergie]]) -> 0
A160: 2022-04-19 | B160: 04 22 | C160: 6 | D160: 3.987 | E160: 5.352 | F160: 9.339 | K160: 24.346 | L160: 9.339 | M160: -15.007 | N160: 2.71 | O160: 4 | P160: 14 | Q160: 9 | S160: 9.15 | T160: -0.15 | V160: =IF(Suivi[[#This Row],[HC - Kw Total énergie]]="","",Suivi[[#This Row],[Montant Total Energie]]/Suivi[[#This Row],[Total KW Total énergie]]) -> 0
A161: 2022-04-20 | B161: 04 22 | C161: 6 | D161: 4.443 | E161: 5.465 | F161: 9.908 | K161: 18.192 | L161: 9.908 | M161: -8.284 | N161: 2.77 | O161: 6.1 | P161: 18.3 | Q161: 12.2 | S161: 11.55 | T161: 0.65 | V161: =IF(Suivi[[#This Row],[HC - Kw Total énergie]]="","",Suivi[[#This Row],[Montant Total Energie]]/Suivi[[#This Row],[Total KW Total énergie]]) -> 0
A162: 2022-04-21 | B162: 04 22 | C162: 6 | D162: 3.878 | E162: 4.867 | F162: 8.745 | K162: 20.029 | L162: 8.745 | M162: -11.284 | N162: 2.79 | O162: 9.3 | P162: 20.2 | Q162: 14.75 | S162: 12 | T162: 2.75 | V162: =IF(Suivi[[#This Row],[HC - Kw Total énergie]]="","",Suivi[[#This Row],[Montant Total Energie]]/Suivi[[#This Row],[Total KW Total énergie]]) -> 0
A163: 2022-04-22 | B163: 04 22 | C163: 6 | D163: 3.556 | E163: 4.199 | F163: 7.755 | K163: 16.598 | L163: 7.755 | M163: -8.843 | N163: 2.73 | O163: 8.2 | P163: 19.7 | Q163: 13.95 | S163: 13.75 | T163: 0.2 | V163: =IF(Suivi[[#This Row],[HC - Kw Total énergie]]="","",Suivi[[#This Row],[Montant Total Energie]]/Suivi[[#This Row],[Total KW Total énergie]]) -> 0
A164: 2022-04-23 | B164: 04 22 | C164: 6 | D164: 3.778 | E164: 4.793 | F164: 8.571 | K164: 13.847 | L164: 8.571 | M164: -5.276 | N164: 3 | O164: 10.3 | P164: 17.5 | Q164: 13.9 | S164: 14.25 | T164: -0.35 | V164: =IF(Suivi[[#This Row],[HC - Kw Total énergie]]="","",Suivi[[#This Row],[Montant Total Energie]]/Suivi[[#This Row],[Total KW Total énergie]]) -> 0
A165: 2022-04-24 | B165: 04 22 | C165: 6 | D165: 3.867 | E165: 5.524 | F165: 9.391 | K165: 14.372 | L165: 9.391 | M165: -4.981 | N165: 3.14 | O165: 10.8 | P165: 17.1 | Q165: 13.95 | S165: 15.5 | T165: -1.55 | V165: =IF(Suivi[[#This Row],[HC - Kw Total énergie]]="","",Suivi[[#This Row],[Montant Total Energie]]/Suivi[[#This Row],[Total KW Total énergie]]) -> 0
A166: 2022-04-25 | B166: 04 22 | C166: 6 | D166: 4.901 | E166: 5.708 | F166: 10.609 | K166: 14.789 | L166: 10.609 | M166: -4.18 | N166: 2.67 | O166: 5.7 | P166: 16.7 | Q166: 11.2 | S166: 14 | T166: -2.8 | V166: =IF(Suivi[[#This Row],[HC - Kw Total énergie]]="","",Suivi[[#This Row],[Montant Total Energie]]/Suivi[[#This Row],[Total KW Total énergie]]) -> 0
A167: 2022-04-26 | B167: 04 22 | C167: 6 | D167: 3.608 | E167: 5.615 | F167: 9.223 | K167: 15.926 | L167: 9.223 | M167: -6.703 | N167: 2.75 | O167: 3 | P167: 17.6 | Q167: 10.3 | S167: 11.65 | T167: -1.35 | V167: =IF(Suivi[[#This Row],[HC - Kw Total énergie]]="","",Suivi[[#This Row],[Montant Total Energie]]/Suivi[[#This Row],[Total KW Total énergie]]) -> 0
A168: 2022-04-27 | B168: 04 22 | C168: 6 | D168: 5.447 | E168: 5.454 | F168: 10.901 | K168: 16.063 | L168: 10.901 | M168: -5.162 | N168: 3.11 | O168: 5.8 | P168: 18.3 | Q168: 12.05 | S168: 10.2 | T168: 1.85 | V168: =IF(Suivi[[#This Row],[HC - Kw Total énergie]]="","",Suivi[[#This Row],[Montant Total Energie]]/Suivi[[#This Row],[Total KW Total énergie]]) -> 0
A169: 2022-04-28 | B169: 04 22 | C169: 6 | D169: 4 | E169: 5.831 | F169: 9.831 | K169: 17.427 | L169: 9.831 | M169: -7.596 | N169: 2.7 | O169: 9.6 | P169: 18.8 | Q169: 14.2 | S169: 9.4 | T169: 4.8 | V169: =IF(Suivi[[#This Row],[HC - Kw Total énergie]]="","",Suivi[[#This Row],[Montant Total Energie]]/Suivi[[#This Row],[Total KW Total énergie]]) -> 0
A170: 2022-04-29 | B170: 04 22 | C170: 6 | D170: 4.027 | E170: 4.978 | F170: 9.005 | K170: 18.196 | L170: 9.005 | M170: -9.191 | N170: 2.7 | O170: 8.4 | P170: 20.3 | Q170: 14.35 | S170: 7.85 | T170: 6.5 | V170: =IF(Suivi[[#This Row],[HC - Kw Total énergie]]="","",Suivi[[#This Row],[Montant Total Energie]]/Suivi[[#This Row],[Total KW Total énergie]]) -> 0
A171: 2022-04-30 | B171: 04 22 | C171: 6 | D171: 5.791 | E171: 5.92 | F171: 11.711 | K171: 19.994 | L171: 11.711 | M171: -8.283 | N171: 2.77 | O171: 4.1 | P171: 16.7 | Q171: 10.4 | S171: 8.95 | T171: 1.45 | V171: =IF(Suivi[[#This Row],[HC - Kw Total énergie]]="","",Suivi[[#This Row],[Montant Total Energie]]/Suivi[[#This Row],[Total KW Total énergie]]) -> 0
A172: 2022-05-01 | B172: 05 22 | C172: 6 | D172: 4.622 | E172: 5.208 | F172: 9.83 | K172: 20.305 | L172: 9.83 | M172: -10.475 | N172: 3.25 | O172: 6.2 | P172: 19.3 | Q172: 12.75 | S172: 8 | T172: 4.75 | V172: =IF(Suivi[[#This Row],[HC - Kw Total énergie]]="","",Suivi[[#This Row],[Montant Total Energie]]/Suivi[[#This Row],[Total KW Total énergie]]) -> 0
A173: 2022-05-02 | B173: 05 22 | C173: 6 | D173: 3.198 | E173: 4.858 | F173: 8.056 | K173: 19.815 | L173: 8.056 | M173: -11.759 | N173: 2.71 | O173: 9.5 | P173: 18 | Q173: 13.75 | S173: 8.2 | T173: 5.55 | V173: =IF(Suivi[[#This Row],[HC - Kw Total énergie]]="","",Suivi[[#This Row],[Montant Total Energie]]/Suivi[[#This Row],[Total KW Total énergie]]) -> 0
A174: 2022-05-03 | B174: 05 22 | C174: 6 | D174: 3.454 | E174: 5.718 | F174: 9.172 | K174: 19.671 | L174: 9.172 | M174: -10.499 | N174: 2.64 | O174: 9.1 | P174: 17.5 | Q174: 13.3 | S174: 9.6 | T174: 3.7 | V174: =IF(Suivi[[#This Row],[HC - Kw Total énergie]]="","",Suivi[[#This Row],[Montant Total Energie]]/Suivi[[#This Row],[Total KW Total énergie]]) -> 0
A175: 2022-05-04 | B175: 05 22 | C175: 6 | D175: 4.898 | E175: 6.029 | F175: 10.927 | K175: 21.735 | L175: 10.927 | M175: -10.808 | N175: 3.16 | O175: 4.6 | P175: 18 | Q175: 11.3 | S175: 12.1 | T175: -0.8 | V175: =IF(Suivi[[#This Row],[HC - Kw Total énergie]]="","",Suivi[[#This Row],[Montant Total Energie]]/Suivi[[#This Row],[Total KW Total énergie]]) -> 0
A176: 2022-05-05 | B176: 05 22 | C176: 6 | D176: 4.236 | E176: 5.145 | F176: 9.381 | K176: 20.019 | L176: 9.381 | M176: -10.638 | N176: 3.14 | O176: 8.7 | P176: 17.7 | Q176: 13.2 | S176: 9.2 | T176: 4 | V176: =IF(Suivi[[#This Row],[HC - Kw Total énergie]]="","",Suivi[[#This Row],[Montant Total Energie]]/Suivi[[#This Row],[Total KW Total énergie]]) -> 0
A177: 2022-05-06 | B177: 05 22 | C177: 6 | D177: 4.763 | E177: 5.315 | F177: 10.078 | K177: 20.019 | L177: 10.078 | M177: -9.941 | N177: 3.16 | O177: 7.5 | P177: 18.7 | Q177: 13.1 | S177: 12.45 | T177: 0.65 | V177: =IF(Suivi[[#This Row],[HC - Kw Total énergie]]="","",Suivi[[#This Row],[Montant Total Energie]]/Suivi[[#This Row],[Total KW Total énergie]]) -> 0
A178: 2022-05-07 | B178: 05 22 | C178: 6 | D178: 3.226 | E178: 4.808 | F178: 8.034 | K178: 20.498 | L178: 8.034 | M178: -12.464 | N178: 2.68 | O178: 10.3 | P178: 18.3 | Q178: 14.3 | S178: 9.1 | T178: 5.2 | V178: =IF(Suivi[[#This Row],[HC - Kw Total énergie]]="","",Suivi[[#This Row],[Montant Total Energie]]/Suivi[[#This Row],[Total KW Total énergie]]) -> 0
A179: 2022-05-08 | B179: 05 22 | C179: 6 | D179: 5.297 | E179: 4.802 | F179: 10.099 | K179: 13.719 | L179: 10.099 | M179: -3.62 | N179: 3.19 | O179: 8.8 | P179: 21.7 | Q179: 15.25 | S179: 16.05 | T179: -0.8 | V179: =IF(Suivi[[#This Row],[HC - Kw Total énergie]]="","",Suivi[[#This Row],[Montant Total Energie]]/Suivi[[#This Row],[Total KW Total énergie]]) -> 0
A180: 2022-05-09 | B180: 05 22 | C180: 6 | D180: 4.426 | E180: 6.573 | F180: 10.999 | K180: 14.59 | L180: 10.999 | M180: -3.591 | N180: 2.82 | O180: 9.1 | P180: 25 | Q180: 17.05 | S180: 16.15 | T180: 0.9 | V180: =IF(Suivi[[#This Row],[HC - Kw Total énergie]]="","",Suivi[[#This Row],[Montant Total Energie]]/Suivi[[#This Row],[Total KW Total énergie]]) -> 0
A181: 2022-05-10 | B181: 05 22 | C181: 6 | D181: 6.619 | E181: 7.35 | F181: 13.969 | K181: 14.292 | L181: 13.969 | M181: -0.323 | N181: 4.78 | O181: 12.4 | P181: 24.9 | Q181: 18.65 | S181: 14.4 | T181: 4.25 | V181: =IF(Suivi[[#This Row],[HC - Kw Total énergie]]="","",Suivi[[#This Row],[Montant Total Energie]]/Suivi[[#This Row],[Total KW Total énergie]]) -> 0
A182: 2022-05-11 | B182: 05 22 | C182: 6 | D182: 6.152 | E182: 5.34 | F182: 11.492 | K182: 13.435 | L182: 11.492 | M182: -1.943 | N182: 4.19 | O182: 9.2 | P182: 20.9 | Q182: 15.05 | S182: 12.15 | T182: 2.9 | V182: =IF(Suivi[[#This Row],[HC - Kw Total énergie]]="","",Suivi[[#This Row],[Montant Total Energie]]/Suivi[[#This Row],[Total KW Total énergie]]) -> 0
A183: 2022-05-12 | B183: 05 22 | C183: 6 | D183: 6.294 | E183: 5.038 | F183: 11.332 | K183: 18.827 | L183: 11.332 | M183: -7.495 | N183: 4.61 | O183: 7.6 | P183: 18.7 | Q183: 13.15 | S183: 11.65 | T183: 1.5 | V183: =IF(Suivi[[#This Row],[HC - Kw Total énergie]]="","",Suivi[[#This Row],[Montant Total Energie]]/Suivi[[#This Row],[Total KW Total énergie]]) -> 0
A184: 2022-05-13 | B184: 05 22 | C184: 6 | D184: 5.647 | E184: 7.444 | F184: 13.091 | K184: 15.406 | L184: 13.091 | M184: -2.315 | N184: 3.61 | O184: 5.4 | P184: 20.4 | Q184: 12.9 | S184: 11.7 | T184: 1.2 | V184: =IF(Suivi[[#This Row],[HC - Kw Total énergie]]="","",Suivi[[#This Row],[Montant Total Energie]]/Suivi[[#This Row],[Total KW Total énergie]]) -> 0
A185: 2022-05-14 | B185: 05 22 | C185: 6 | D185: 6.663 | E185: 6.769 | F185: 13.432 | K185: 19.043 | L185: 13.432 | M185: -5.611 | N185: 2.99 | O185: 8.6 | P185: 24.5 | Q185: 16.55 | S185: 12.55 | T185: 4 | V185: =IF(Suivi[[#This Row],[HC - Kw Total énergie]]="","",Suivi[[#This Row],[Montant Total Energie]]/Suivi[[#This Row],[Total KW Total énergie]]) -> 0
A186: 2022-05-15 | B186: 05 22 | C186: 6 | D186: 5.729 | E186: 6.615 | F186: 12.344 | K186: 16.397 | L186: 12.344 | M186: -4.053 | N186: 3 | O186: 16.9 | P186: 27.3 | Q186: 22.1 | S186: 12.8 | T186: 9.3 | V186: =IF(Suivi[[#This Row],[HC - Kw Total énergie]]="","",Suivi[[#This Row],[Montant Total Energie]]/Suivi[[#This Row],[Total KW Total énergie]]) -> 0
A187: 2022-05-16 | B187: 05 22 | C187: 7 | D187: 5.307 | E187: 5.56 | F187: 10.867 | K187: 17.807 | L187: 10.867 | M187: -6.94 | N187: 2.93 | O187: 13.6 | P187: 23.4 | Q187: 18.5 | S187: 13.7 | T187: 4.8 | V187: =IF(Suivi[[#This Row],[HC - Kw Total énergie]]="","",Suivi[[#This Row],[Montant Total Energie]]/Suivi[[#This Row],[Total KW Total énergie]]) -> 0
A188: 2022-05-17 | B188: 05 22 | C188: 7 | D188: 6.01 | E188: 7.761 | F188: 13.771 | K188: 17.094 | L188: 13.771 | M188: -3.323 | N188: 3.36 | O188: 11.2 | P188: 28.1 | Q188: 19.65 | S188: 13.6 | T188: 6.05 | V188: =IF(Suivi[[#This Row],[HC - Kw Total énergie]]="","",Suivi[[#This Row],[Montant Total Energie]]/Suivi[[#This Row],[Total KW Total énergie]]) -> 0
A189: 2022-05-18 | B189: 05 22 | C189: 7 | D189: 6.602 | E189: 7.081 | F189: 13.683 | K189: 16.03 | L189: 13.683 | M189: -2.347 | N189: 4.87 | O189: 10.6 | P189: 26.2 | Q189: 18.4 | S189: 12.8 | T189: 5.6 | V189: =IF(Suivi[[#This Row],[HC - Kw Total énergie]]="","",Suivi[[#This Row],[Montant Total Energie]]/Suivi[[#This Row],[Total KW Total énergie]]) -> 0
A190: 2022-05-19 | B190: 05 22 | C190: 7 | D190: 5.315 | E190: 4.65 | F190: 9.965 | K190: 16.569 | L190: 9.965 | M190: -6.604 | N190: 2.96 | O190: 13.3 | P190: 22 | Q190: 17.65 | S190: 13.2 | T190: 4.45 | V190: =IF(Suivi[[#This Row],[HC - Kw Total énergie]]="","",Suivi[[#This Row],[Montant Total Energie]]/Suivi[[#This Row],[Total KW Total énergie]]) -> 0
A191: 2022-05-20 | B191: 05 22 | C191: 7 | D191: 5.62 | E191: 7.163 | F191: 12.783 | K191: 16.877 | L191: 12.783 | M191: -4.094 | N191: 2.92 | O191: 13.5 | P191: 20.2 | Q191: 16.85 | S191: 12.35 | T191: 4.5 | V191: =IF(Suivi[[#This Row],[HC - Kw Total énergie]]="","",Suivi[[#This Row],[Montant Total Energie]]/Suivi[[#This Row],[Total KW Total énergie]]) -> 0
A192: 2022-05-21 | B192: 05 22 | C192: 7 | D192: 5.656 | E192: 4.112 | F192: 9.768 | K192: 17.071 | L192: 9.768 | M192: -7.303 | N192: 4.02 | O192: 7.9 | P192: 23.5 | Q192: 15.7 | S192: 13.45 | T192: 2.25 | V192: =IF(Suivi[[#This Row],[HC - Kw Total énergie]]="","",Suivi[[#This Row],[Montant Total Energie]]/Suivi[[#This Row],[Total KW Total énergie]]) -> 0
A193: 2022-05-22 | B193: 05 22 | C193: 7 | D193: 5.49 | E193: 6.358 | F193: 11.848 | K193: 16.638 | L193: 11.848 | M193: -4.79 | N193: 2.97 | O193: 13.2 | P193: 25.1 | Q193: 19.15 | S193: 12.7 | T193: 6.45 | V193: =IF(Suivi[[#This Row],[HC - Kw Total énergie]]="","",Suivi[[#This Row],[Montant Total Energie]]/Suivi[[#This Row],[Total KW Total énergie]]) -> 0
A194: 2022-05-23 | B194: 05 22 | C194: 7 | D194: 4.697 | E194: 6.877 | F194: 11.574 | K194: 17.156 | L194: 11.574 | M194: -5.582 | N194: 2.93 | O194: 11.8 | P194: 18.1 | Q194: 14.95 | S194: 10.8 | T194: 4.15 | V194: =IF(Suivi[[#This Row],[HC - Kw Total énergie]]="","",Suivi[[#This Row],[Montant Total Energie]]/Suivi[[#This Row],[Total KW Total énergie]]) -> 0
A195: 2022-05-24 | B195: 05 22 | C195: 7 | D195: 7.997 | E195: 7.271 | F195: 15.268 | K195: 20.922 | L195: 15.268 | M195: -5.654 | N195: 4.9 | O195: 8.3 | P195: 17.2 | Q195: 12.75 | S195: 11.1 | T195: 1.65 | V195: =IF(Suivi[[#This Row],[HC - Kw Total énergie]]="","",Suivi[[#This Row],[Montant Total Energie]]/Suivi[[#This Row],[Total KW Total énergie]]) -> 0
A196: 2022-05-25 | B196: 05 22 | C196: 7 | D196: 4.707 | E196: 3.83 | F196: 8.537 | K196: 18.376 | L196: 8.537 | M196: -9.839 | N196: 2.8 | O196: 7.8 | P196: 17.5 | Q196: 12.65 | S196: 12.1 | T196: 0.55 | V196: =IF(Suivi[[#This Row],[HC - Kw Total énergie]]="","",Suivi[[#This Row],[Montant Total Energie]]/Suivi[[#This Row],[Total KW Total énergie]]) -> 0
A197: 2022-05-26 | B197: 05 22 | C197: 7 | D197: 4.136 | E197: 3.29 | F197: 7.426 | K197: 17.815 | L197: 7.426 | M197: -10.389 | N197: 2.78 | O197: 12.2 | P197: 16.7 | Q197: 14.45 | S197: 12.1 | T197: 2.35 | V197: =IF(Suivi[[#This Row],[HC - Kw Total énergie]]="","",Suivi[[#This Row],[Montant Total Energie]]/Suivi[[#This Row],[Total KW Total énergie]]) -> 0
A198: 2022-05-27 | B198: 05 22 | C198: 7 | D198: 2.946 | E198: 3.268 | F198: 6.214 | K198: 9.901 | L198: 6.214 | M198: -3.687 | N198: 2.73 | O198: 11.6 | P198: 17.9 | Q198: 14.75 | S198: 14.7 | T198: 0.05 | V198: =IF(Suivi[[#This Row],[HC - Kw Total énergie]]="","",Suivi[[#This Row],[Montant Total Energie]]/Suivi[[#This Row],[Total KW Total énergie]]) -> 0
A199: 2022-05-28 | B199: 05 22 | C199: 7 | D199: 2.901 | E199: 3.28 | F199: 6.181 | K199: 6.988 | L199: 6.181 | M199: -0.807 | N199: 2.74 | O199: 6.5 | P199: 20.4 | Q199: 13.45 | S199: 15.5 | T199: -2.05 | V199: =IF(Suivi[[#This Row],[HC - Kw Total énergie]]="","",Suivi[[#This Row],[Montant Total Energie]]/Suivi[[#This Row],[Total KW Total énergie]]) -> 0
A200: 2022-05-29 | B200: 05 22 | C200: 7 | D200: 4.289 | E200: 3.313 | F200: 7.602 | K200: 8.08 | L200: 7.602 | M200: -0.478 | N200: 2.76 | O200: 7.4 | P200: 17.5 | Q200: 12.45 | S200: 17.1 | T200: -4.65 | V200: =IF(Suivi[[#This Row],[HC - Kw Total énergie]]="","",Suivi[[#This Row],[Montant Total Energie]]/Suivi[[#This Row],[Total KW Total énergie]]) -> 0
... 581 more rows
